Workbook

Sheet Summary
A3: Paragon Mortgages (No.8) PLC
A5: Information as at the Principal Determination Date | B5: 2005-03-31 | C5: 2005-06-30 | D5: 2005-09-30 | E5: 2005-12-31 | F5: 2006-03-31 | G5: 2006-06-30 | H5: 2006-09-29 | I5: 2006-12-29 | J5: 2007-03-30 | K5: 2007-06-29 | L5: 2007-09-28 | M5: 2007-12-31 | N5: 2008-03-31 | O5: 2008-06-30 | P5: 2008-09-30 | Q5: 2008-12-31 | R5: 2009-03-31 | S5: 2009-06-30 | T5: 2009-09-30 | U5: 2009-12-31 | V5: 2010-03-31 | W5: 2010-06-30 | X5: 2010-09-30 | Y5: 2010-12-31 | Z5: 2011-03-31 | AA5: 2011-06-30 | AB5: 2011-09-30 | AC5: 2011-12-30 | AD5: 2012-03-30 | AE5: 2012-06-29 | AF5: 2012-09-28 | AG5: 2012-12-31 | AH5: 2013-03-28 | AI5: 2013-06-28 | AJ5: 2013-09-30 | AK5: 2013-12-31 | AL5: 2014-03-31 | AM5: 2014-06-30 | AN5: 2014-09-30 | AO5: 2014-12-31 | AP5: 2015-03-31 | AQ5: 2015-06-30 | AR5: 2015-09-30 | AS5: 2015-12-31 | AT5: 2016-03-31 | AU5: 2016-06-30 | AV5: 2016-09-30 | AW5: 2016-12-30 | AX5: 2017-03-31 | AY5: 2017-06-30 | AZ5: 2017-09-29 | BA5: 2017-12-29
A6: Mortgage Asset Balance | B6: 968697 | C6: 943496 | D6: 918164 | E6: 890041 | F6: 858073 | G6: 829133 | H6: 794615 | I6: 765659 | J6: 736211 | K6: 708277 | L6: 649682 | M6: 601013 | N6: 558592 | O6: 534663 | P6: 515974 | Q6: 504843 | R6: 499291 | S6: 494147 | T6: 492224 | U6: 487912 | V6: 485211 | W6: 480127 | X6: 474406 | Y6: 471419 | Z6: 468977 | AA6: 463811 | AB6: 461302 | AC6: 458044 | AD6: 454997 | AE6: 444490 | AF6: 441452 | AG6: 438544 | AH6: 434853 | AI6: 431856 | AJ6: 429710 | AK6: 426421 | AL6: 422061 | AM6: 419113 | AN6: 414444.5305 | AO6: 409864.3071 | AP6: 405773.5089 | AQ6: 400648.3922 | AR6: 395210.0284 | AS6: 390539.8497 | AT6: 379288.2264 | AU6: 373495.352 | AV6: 368752.5288 | AW6: 361605.4654 | AX6: 355987.2925 | AY6: 349041.7019 | AZ6: 344196.3067 | BA6: 0
A7: Total Notes | B7: =SUM(B8:B13) -> 968697 | C7: 943496 | D7: 918163 | E7: 890041 | F7: 858073 | G7: 829133 | H7: 794615 | I7: =SUM(I8:I13) -> 765659 | J7: 736211 | K7: 708277 | L7: 649682 | M7: 601013 | N7: 558592 | O7: =SUM(O8:O13) -> 534663 | P7: =SUM(P8:P13) -> 515974 | Q7: =SUM(Q8:Q13) -> 504843 | R7: =SUM(R8:R13)+1 -> 499291 | S7: =SUM(S8:S13) -> 494147 | T7: =SUM(T8:T13) -> 492224 | U7: =SUM(U8:U13)-1 -> 487912 | V7: =SUM(V8:V13) -> 485211 | W7: =SUM(W8:W13)-1 -> 480127 | X7: =SUM(X8:X13) -> 474406 | Y7: =SUM(Y8:Y13)+1 -> 471419 | Z7: =SUM(Z8:Z13)+1 -> 468977 | AA7: =SUM(AA8:AA13) -> 463811 | AB7: =SUM(AB8:AB13) -> 461302 | AC7: =SUM(AC8:AC13)-1 -> 458044 | AD7: =SUM(AD8:AD13) -> 454997 | AE7: =SUM(AE8:AE13) -> 444490 | AF7: =SUM(AF8:AF13)-1 -> 441452 | AG7: =SUM(AG8:AG13) -> 438544 | AH7: =SUM(AH8:AH13)-1 -> 434853 | AI7: =SUM(AI8:AI13) -> 431856 | AJ7: =SUM(AJ8:AJ13) -> 429710 | AK7: =SUM(AK8:AK13)-1 -> 426421 | AL7: =SUM(AL8:AL13)+1 -> 422061 | AM7: =SUM(AM8:AM13) -> 419113 | AN7: =SUM(AN8:AN13) -> 414445 | AO7: =SUM(AO8:AO13) -> 409864 | AP7: =SUM(AP8:AP13)+1 -> 405774 | AQ7: =SUM(AQ8:AQ13) -> 400648 | AR7: =SUM(AR8:AR13) -> 395210 | AS7: =SUM(AS8:AS13) -> 390540 | AT7: =SUM(AT8:AT13)+1 -> 379288 | AU7: =SUM(AU8:AU13)-1 -> 373495 | AV7: =SUM(AV8:AV13) -> 368753 | AW7: 361605 | AX7: 355987 | AY7: 349042 | AZ7: 344196 | BA7: 0
A8: Class A1a Notes | B8: 44409 | C8: 39908 | D8: 35384 | E8: 30361 | F8: 24652 | G8: 19488 | H8: 13324 | I8: 8153 | J8: 2895 | K8: 0 | L8: 0 | M8: 0 | N8: 0 | O8: 0 | P8: 0 | Q8: 0 | R8: 0 | S8: 0 | T8: 0 | U8: 0 | V8: 0 | W8: 0 | X8: 0 | Y8: 0 | Z8: 0 | AA8: 0 | AB8: 0 | AC8: 0 | AD8: 0 | AE8: 0 | AF8: 0 | AG8: 0 | AH8: 0 | AI8: 0 | AJ8: 0 | AK8: 0 | AL8: 0 | AM8: 0 | AN8: 0 | AO8: 0 | AP8: 0 | AQ8: 0 | AR8: 0 | AS8: 0 | AT8: 0 | AU8: 0 | AV8: 0 | AW8: 0 | AX8: 0 | AY8: 0 | AZ8: 0 | BA8: 0
A9: Class A1b Notes | B9: 204288 | C9: 183588 | D9: 162779 | E9: 139680 | F9: 113421 | G9: 89645 | H9: 61291 | I9: 37506 | J9: 13316 | K9: 0 | L9: 0 | M9: 0 | N9: 0 | O9: 0 | P9: 0 | Q9: 0 | R9: 0 | S9: 0 | T9: 0 | U9: 0 | V9: 0 | W9: 0 | X9: 0 | Y9: 0 | Z9: 0 | AA9: 0 | AB9: 0 | AC9: 0 | AD9: 0 | AE9: 0 | AF9: 0 | AG9: 0 | AH9: 0 | AI9: 0 | AJ9: 0 | AK9: 0 | AL9: 0 | AM9: 0 | AN9: 0 | AO9: 0 | AP9: 0 | AQ9: 0 | AR9: 0 | AS9: 0 | AT9: 0 | AU9: 0 | AV9: 0 | AW9: 0 | AX9: 0 | AY9: 0 | AZ9: 0 | BA9: 0
A10: Class A2a Notes | B10: 305000 | C10: 305000 | D10: 305000 | E10: 305000 | F10: 305000 | G10: 305000 | H10: 305000 | I10: 305000 | J10: 305000 | K10: 299233 | L10: 270408 | M10: 246466 | N10: 225598 | O10: 213826 | P10: 204632 | Q10: 199157 | R10: 196425 | S10: 193895 | T10: 192949 | U10: 192017 | V10: 190954 | W10: 188953 | X10: 186702 | Y10: 185526 | Z10: 184565 | AA10: 182532 | AB10: 181545 | AC10: 180263 | AD10: 179063 | AE10: 174928 | AF10: 173733 | AG10: 172588 | AH10: 171136 | AI10: 169956 | AJ10: 169112 | AK10: 167818 | AL10: 166101 | AM10: 164941 | AN10: 163104 | AO10: 161302 | AP10: 159692 | AQ10: 157675 | AR10: 155534 | AS10: 153696 | AT10: 149268 | AU10: 146989 | AV10: 145122 | AW10: 142309 | AX10: 140098 | AY10: 137365 | AZ10: 135458 | BA10: 0
A11: Class A2b Notes | B11: 315000 | C11: 315000 | D11: 315000 | E11: 315000 | F11: 315000 | G11: 315000 | H11: 315000 | I11: 315000 | J11: 315000 | K11: 309044 | L11: 279274 | M11: 254547 | N11: 232994 | O11: 220837 | P11: 211342 | Q11: 205686 | R11: 202865 | S11: 200252 | T11: 199275 | U11: 198313 | V11: 197215 | W11: 195149 | X11: 192823 | Y11: 191609 | Z11: 190616 | AA11: 188517 | AB11: 187497 | AC11: 186173 | AD11: 184934 | AE11: 180664 | AF11: 179429 | AG11: 178247 | AH11: 176747 | AI11: 175529 | AJ11: 174656 | AK11: 173320 | AL11: 171547 | AM11: 170349 | AN11: 168452 | AO11: 166590 | AP11: 164927 | AQ11: 162844 | AR11: 160634 | AS11: 158736 | AT11: 154162 | AU11: 151808 | AV11: 149880 | AW11: 146975 | AX11: 144692 | AY11: 141869 | AZ11: 139899 | BA11: 0
A12: Class B1a Notes | B12: 65000 | C12: 65000 | D12: 65000 | E12: 65000 | F12: 65000 | G12: 65000 | H12: 65000 | I12: 65000 | J12: 65000 | K12: 65000 | L12: 65000 | M12: 65000 | N12: 65000 | O12: 65000 | P12: 65000 | Q12: 65000 | R12: 65000 | S12: 65000 | T12: 65000 | U12: 63429 | V12: 63077 | W12: 62417 | X12: 61673 | Y12: 61284 | Z12: 60967 | AA12: 60295 | AB12: 59969 | AC12: 59546 | AD12: 59150 | AE12: 57784 | AF12: 57389 | AG12: 57011 | AH12: 56531 | AI12: 56141 | AJ12: 55862 | AK12: 55435 | AL12: 54868 | AM12: 54485 | AN12: 53878 | AO12: 53282 | AP12: 52750 | AQ12: 52084 | AR12: 51377 | AS12: 50770 | AT12: 49307 | AU12: 48554 | AV12: 47938 | AW12: 47009 | AX12: 46278 | AY12: 45375 | AZ12: 44745 | BA12: 0
A13: Class B1b Notes | B13: 35000 | C13: 35000 | D13: 35000 | E13: 35000 | F13: 35000 | G13: 35000 | H13: 35000 | I13: 35000 | J13: 35000 | K13: 35000 | L13: 35000 | M13: 35000 | N13: 35000 | O13: 35000 | P13: 35000 | Q13: 35000 | R13: 35000 | S13: 35000 | T13: 35000 | U13: 34154 | V13: 33965 | W13: 33609 | X13: 33208 | Y13: 32999 | Z13: 32828 | AA13: 32467 | AB13: 32291 | AC13: 32063 | AD13: 31850 | AE13: 31114 | AF13: 30902 | AG13: 30698 | AH13: 30440 | AI13: 30230 | AJ13: 30080 | AK13: 29849 | AL13: 29544 | AM13: 29338 | AN13: 29011 | AO13: 28690 | AP13: 28404 | AQ13: 28045 | AR13: 27665 | AS13: 27338 | AT13: 26550 | AU13: 26145 | AV13: 25813 | AW13: 25312 | AX13: 24919 | AY13: 24433 | AZ13: 24094 | BA13: 0
A14: Class B Notes as a % of the Total Notes | B14: =SUM(B12:B13)/B7 -> 0.1032314542 | C14: 0.1059887906 | D14: 0.1089131233 | E14: 0.1123543747 | F14: 0.1165402011 | G14: 0.1206079121 | H14: 0.1258471083 | I14: 0.1306064449 | J14: 0.1358306246 | K14: 0.1411876992 | L14: 0.153921457 | M14: 0.1663857521 | N14: 0.1790215399 | O14: 0.1870337016 | P14: 0.1938082151 | Q14: 0.1980813837 | R14: 0.2002840027 | S14: 0.2023689307 | T14: 0.2031595371 | U14: 0.2000012297 | V14: 0.1999995878 | W14: 0.2000012497 | X14: 0.1999995784 | Y14: 0.199998303 | Z14: 0.1999991471 | AA14: 0.1999995688 | AB14: 0.1999991329 | AC14: =SUM(AC12:AC13)/AC7 -> 0.2000004366 | AD14: 0.2000013187 | AE14: 0.2 | AF14: 0.2000013592 | AG14: 0.2000004561 | AH14: 0.2000009199 | AI14: =SUM(AI12:AI13)/AI7 -> 0.1999995369 | AJ14: 0.2 | AK14: 0.199999531 | AL14: 0.1999995261 | AM14: 0.2000009544 | AN14: 0.2 | AO14: =SUM(AO12:AO13)/AO7 -> 0.1999980481 | AP14: 0.1999980285 | AQ14: =SUM(AQ12:AQ13)/AQ7 -> 0.1999985024 | AR14: 0.2 | AS14: =SUM(AS12:AS13)/AS7 -> 0.2 | AT14: 0.1999984181 | AU14: =SUM(AU12:AU13)/AU7 -> 0.2 | AV14: 0.2000010847 | AW14: =SUM(AW12:AW13)/AW7 -> 0.2 | AX14: 0.1999988764 | AY14: =SUM(AY12:AY13)/AY7 -> 0.199998854 | AZ14: 0.1999994189 | BA14: 0
A15: Overall Lifetime Redemption Rate | B15: 0.1204 | C15: 0.125 | D15: 0.1283 | E15: 0.1318 | F15: 0.136 | G15: 0.1382 | H15: 0.1445 | I15: 0.1465 | J15: 0.1484 | K15: 0.1498 | L15: 0.1648 | M15: 0.1755 | N15: 0.1824 | O15: 0.1831 | P15: 0.1812 | Q15: 0.176 | R15: 0.1692 | S15: 0.1629 | T15: 0.1564 | U15: 0.1511 | V15: 0.1458 | W15: 0.1416 | X15: 0.138 | Y15: 0.1338 | Z15: 0.1298 | AA15: 0.1268 | AB15: 0.1234 | AC15: 0.1203 | AD15: 0.1173 | AE15: 0.1165 | AF15: 0.1139 | AG15: 0.1113 | AH15: 0.1091 | AI15: 0.1069 | AJ15: 0.1046 | AK15: 0.1027 | AL15: 0.1011 | AM15: 0.0994 | AN15: 0.0981 | AO15: 0.0969 | AP15: 0.0956 | AQ15: 0.0945 | AR15: 0.0937 | AS15: 0.0927 | AT15: 0.0931 | AU15: 0.0925 | AV15: 0.0916 | AW15: 0.0913 | AX15: 0.0907 | AY15: 0.0904 | AZ15: 0.0898 | BA15: 1
A16: Quarterly Redemption Rate | B16: 0.0579 | C16: 0.0351 | D16: 0.0365 | E16: 0.0384 | F16: 0.0416 | G16: 0.0401 | H16: 0.0502 | I16: 0.0433 | J16: 0.0443 | K16: 0.0438 | L16: 0.0887 | M16: 0.0835 | N16: 0.0744 | O16: 0.0521 | P16: 0.0402 | Q16: 0.0234 | R16: 0.0122 | S16: 0.0119 | T16: 0.0064 | U16: 0.011 | V16: 0.0071 | W16: 0.0125 | X16: 0.0133 | Y16: 0.0067 | Z16: 0.0061 | AA16: 0.0113 | AB16: 0.0067 | AC16: 0.0073 | AD16: 0.0073 | AE16: 0.0234 | AF16: 0.0073 | AG16: 0.0067 | AH16: 0.0084 | AI16: 0.0069 | AJ16: 0.0053 | AK16: 0.0083 | AL16: 0.0105 | AM16: 0.0083 | AN16: 0.0119 | AO16: 0.0118 | AP16: 0.0101 | AQ16: 0.0127 | AR16: 0.0142 | AS16: 0.0124 | AT16: 0.0296 | AU16: 0.0157 | AV16: 0.0128 | AW16: 0.0195 | AX16: 0.016 | AY16: 0.0195 | AZ16: 0.0141 | BA16: 1
A17: Further Advances released in the quarter | B17: 8494 | C17: 6885 | D17: 7798 | E17: 6366 | F17: 4853 | G17: 5353 | H17: 7062 | I17: 5088 | J17: 4204 | K17: 4209 | L17: 4078 | M17: 5464 | N17: 2248 | O17: 5091 | P17: 2747 | Q17: 892 | R17: 620 | S17: 812 | T17: 1230 | U17: 1035 | V17: 752 | W17: 974 | X17: 650 | Y17: 183 | Z17: 410 | AA17: 130 | AB17: 607 | AC17: 89 | AD17: 309 | AE17: 158 | AF17: 153 | AG17: 58 | AH17: 8 | AI17: 17 | AJ17: 124 | AK17: 293 | AL17: 115 | AM17: 531 | AN17: 314 | AO17: 298 | AP17: 20 | AQ17: 34 | AR17: 260 | AS17: 234 | AT17: 315 | AU17: 175 | AV17: 50 | AW17: 45 | AX17: 171 | AY17: 0 | AZ17: 80 | BA17: 0
A18: First Loss Fund Balance | B18: 19000 | C18: 19000 | D18: 19000 | E18: 19000 | F18: 19000 | G18: 19000 | H18: 19000 | I18: 19000 | J18: 19000 | K18: 19000 | L18: 19000 | M18: 19000 | N18: 19000 | O18: 19000 | P18: 19000 | Q18: 19000 | R18: 19000 | S18: 19000 | T18: 19000 | U18: 19000 | V18: 19000 | W18: 19000 | X18: 19000 | Y18: 19000 | Z18: 19000 | AA18: 19000 | AB18: 19000 | AC18: 19000 | AD18: 19000 | AE18: 19000 | AF18: 19000 | AG18: 19000 | AH18: 19000 | AI18: 19000 | AJ18: 19000 | AK18: 19000 | AL18: 19000 | AM18: 19000 | AN18: 19000 | AO18: 19000 | AP18: 19000 | AQ18: 19000 | AR18: 19000 | AS18: 19000 | AT18: 19000 | AU18: 19000 | AV18: 19000 | AW18: 19000 | AX18: 19000 | AY18: 19000 | AZ18: 19000 | BA18: 0
A19: First Loss Fund as a % of the Mortgages | B19: =+B18/B6 -> 0.0196139763 | C19: 0.02013787022 | D19: 0.02069347088 | E19: 0.02134733119 | F19: 0.02214263821 | G19: 0.0229155033 | H19: 0.02391095059 | I19: 0.02481522453 | J19: 0.02580781868 | K19: 0.02682566284 | L19: 0.02924507682 | M19: 0.03161329289 | N19: 0.03401409258 | O19: 0.0355364033 | P19: 0.03682356088 | Q19: 0.03763546291 | R19: 0.03805396052 | S19: 0.03845009683 | T19: 0.03860031205 | U19: 0.03894144846 | V19: 0.03915822189 | W19: 0.03957286301 | X19: 0.04005008368 | Y19: 0.04030384859 | Z19: 0.04051371389 | AA19: 0.04096496202 | AB19: 0.04118776853 | AC19: =+AC18/AC6 -> 0.04148073111 | AD19: 0.04175851709 | AE19: 0.04274561857 | AF19: 0.04303978689 | AG19: 0.04332518516 | AH19: 0.04369292612 | AI19: =+AI18/AI6 -> 0.04399614686 | AJ19: 0.04421586651 | AK19: 0.04455690503 | AL19: 0.04501718946 | AM19: 0.04533383598 | AN19: 0.0458444945 | AO19: =+AO18/AO6 -> 0.04635680559 | AP19: 0.04682415087 | AQ19: =+AQ18/AQ6 -> 0.04742312804 | AR19: 0.04807570313 | AS19: =+AS18/AS6 -> 0.04865060509 | AT19: 0.05009383018 | AU19: =+AU18/AU6 -> 0.05087078032 | AV19: 0.05152507038 | AW19: =+AW18/AW6 -> 0.05254345362 | AX19: 0.05337269167 | AY19: =+AY18/AY6 -> 0.05443475636 | AZ19: 0.05520105717 | BA19: 0
A20: Opening PDL Balance | B20: 0 | C20: 0 | D20: 0 | E20: 0 | F20: 0 | G20: 0 | H20: 0 | I20: 0 | J20: 0 | K20: 0 | L20: 0 | M20: 0 | N20: 0 | O20: 0 | P20: 0 | Q20: 0 | R20: 0 | S20: 0 | T20: 0 | U20: 0 | V20: 0 | W20: 0 | X20: 0 | Y20: 0 | Z20: 0 | AA20: 0 | AB20: 0 | AC20: 0 | AD20: 0 | AE20: 0 | AF20: 0 | AG20: 0 | AH20: 0 | AI20: 0 | AJ20: 0 | AK20: 0 | AL20: 0 | AM20: 0 | AN20: 0 | AO20: 0 | AP20: 0 | AQ20: 0 | AR20: 0 | AS20: 0 | AT20: 0 | AU20: 0 | AV20: 0 | AW20: 0 | AX20: 0 | AY20: 0 | AZ20: 0 | BA20: 0
A21: Quarterly Losses | B21: 0 | C21: 0 | D21: 0 | E21: 0 | F21: 0 | G21: 0 | H21: =SUM(H90+H123) -> 43 | I21: 19 | J21: 88 | K21: 91 | L21: 31 | M21: 8 | N21: =SUM(N90+N123) -> -70 | O21: -2 | P21: -3 | Q21: 61 | R21: 272 | S21: 743 | T21: =SUM(T90+T123) -> 100 | U21: 606 | V21: 13 | W21: 601 | X21: 384 | Y21: 11 | Z21: =SUM(Z90+Z123) -> 47 | AA21: 82 | AB21: -72 | AC21: 123 | AD21: 253 | AE21: 99 | AF21: =SUM(AF90+AF123) -> 251 | AG21: 370 | AH21: 187 | AI21: 214 | AJ21: 46 | AK21: -16 | AL21: =SUM(AL90+AL123) -> 18 | AM21: -31 | AN21: =SUM(AN90+AN123) -> 1 | AO21: 177 | AP21: 298 | AQ21: =SUM(AQ90+AQ123) -> 135 | AR21: 114 | AS21: =SUM(AS90+AS123) -> -64 | AT21: -35 | AU21: -36 | AV21: =SUM(AV90+AV123) -> 83 | AW21: 23 | AX21: =SUM(AX90+AX123) -> 4 | AY21: 252 | AZ21: =SUM(AZ90+AZ123) -> 29 | BA21: 166
A22: Quarterly Loss Rate (annualised) | B22: 0 | C22: =1-(1-C21/C6)^4 -> 0 | D22: 0 | E22: 0 | F22: 0 | G22: 0 | H22: 0.0002164394569 | I22: 9.925720342e-05 | J22: 0.0004780380797 | K22: 0.0005138241895 | L22: 0.0001908489464 | M22: 5.324237759e-05 | N22: 0 | O22: 0 | P22: 0 | Q22: 0.0004832309845 | R22: 0.002177309934 | S22: =1-(1-S21/S6)^4 -> 0.006000853314 | T22: 0.0008123905392 | U22: 0.004958860875 | V22: 0.0001071655635 | W22: 0.004997615105 | X22: 0.003233804109 | Y22: 9.333196157e-05 | Z22: 0.0004008122794 | AA22: 0.0007069970884 | AB22: 0 | AC22: 0.001073700033 | AD22: =1-(1-AD21/AD6)^4 -> 0.002222336043 | AE22: 0.0008906110817 | AF22: 0.002272373997 | AG22: 0.00337053531 | AH22: 0.001719012274 | AI22: 0.001980669349 | AJ22: =1-(1-AJ21/AJ6)^4 -> 0.000428127008 | AK22: 0 | AL22: =1-(1-AL21/AL6)^4 -> 0.0001705805421 | AM22: 0 | AN22: =1-(1-AN21/AN6)^4 -> 9.651437595e-06 | AO22: 0.00172628232 | AP22: =1-(1-AP21/AP6)^4 -> 0.002934364885 | AQ22: 0.001347134144 | AR22: =1-(1-AR21/AR6)^4 -> 0.001153317736 | AS22: 0 | AT22: 0 | AU22: 0 | AV22: 0.0009000288797 | AW22: =1-(1-AW21/AW6)^4 -> 0.0002543966606 | AX22: 4.494466703e-05 | AY22: =1-(1-AY21/AY6)^4 -> 0.002884781076 | AZ22: =1-(1-AZ21/AZ6)^4 -> 0.0003369743903 | BA22: 0
A23: PDL Replenishment made during the quarter (-ve = recoveries) | B23: 0 | C23: 0 | D23: 0 | E23: 0 | F23: 0 | G23: 0 | H23: 43 | I23: 19 | J23: 88 | K23: 91 | L23: 31 | M23: 8 | N23: -70 | O23: -2 | P23: -3 | Q23: 61 | R23: 272 | S23: 743 | T23: 100 | U23: 606 | V23: 13 | W23: 601 | X23: 384 | Y23: 11 | Z23: 47 | AA23: 82 | AB23: -72 | AC23: 123 | AD23: 253 | AE23: 99 | AF23: 251 | AG23: 370 | AH23: 187 | AI23: 214 | AJ23: 46 | AK23: -16 | AL23: 18 | AM23: -31 | AN23: 1 | AO23: 177 | AP23: 298 | AQ23: 135 | AR23: 114 | AS23: -64 | AT23: -35 | AU23: -36 | AV23: 83 | AW23: 23 | AX23: 4 | AY23: 252 | AZ23: 29 | BA23: 166
A24: Outstanding PDL at end of the quarter | B24: =B20+B21-B23 -> 0 | C24: 0 | D24: 0 | E24: 0 | F24: 0 | G24: 0 | H24: 0 | I24: 0 | J24: 0 | K24: 0 | L24: 0 | M24: 0 | N24: 0 | O24: 0 | P24: 0 | Q24: 0 | R24: 0 | S24: 0 | T24: 0 | U24: 0 | V24: 0 | W24: 0 | X24: 0 | Y24: 0 | Z24: 0 | AA24: 0 | AB24: 0 | AC24: =AC20+AC21-AC23 -> 0 | AD24: 0 | AE24: 0 | AF24: 0 | AG24: 0 | AH24: 0 | AI24: =AI20+AI21-AI23 -> 0 | AJ24: 0 | AK24: 0 | AL24: 0 | AM24: 0 | AN24: 0 | AO24: =AO20+AO21-AO23 -> 0 | AP24: 0 | AQ24: =AQ20+AQ21-AQ23 -> 0 | AR24: 0 | AS24: =AS20+AS21-AS23 -> 0 | AT24: 0 | AU24: =AU20+AU21-AU23 -> 0 | AV24: 0 | AW24: =AW20+AW21-AW23 -> 0 | AX24: 0 | AY24: =AY20+AY21-AY23 -> 0 | AZ24: 0 | BA24: =BA20+BA21-BA23 -> 0
A25: Spread Trap repayment in the quarter | B25: N/A | C25: N/A | D25: N/A | E25: N/A | F25: N/A | G25: N/A | H25: N/A | I25: N/A | J25: N/A | K25: N/A | L25: N/A | M25: N/A | N25: N/A | O25: N/A | P25: N/A | Q25: N/A | R25: N/A | S25: N/A | T25: N/A | U25: N/A | V25: N/A | W25: N/A | X25: N/A | Y25: N/A | Z25: N/A | AA25: N/A | AB25: N/A | AC25: N/A | AD25: N/A | AE25: N/A | AF25: N/A | AG25: N/A | AH25: N/A | AI25: N/A | AJ25: N/A | AK25: N/A | AL25: N/A | AM25: N/A | AN25: N/A | AO25: N/A | AP25: N/A | AQ25: N/A | AR25: N/A | AS25: N/A | AT25: N/A | AU25: N/A | AV25: N/A | AW25: N/A | AX25: N/A | AY25: N/A | AZ25: N/A | BA25: N/A
A26: Spread % (WA Funding Rate versus WA Interest Rate) | B26: 0.0105 | C26: 0.0091 | D26: 0.011 | E26: 0.0123 | F26: 0.0118 | G26: 0.0107 | H26: 0.0109 | I26: 0.008 | J26: 0.0052 | K26: 0.0063 | L26: 0.0054 | M26: 0.0027 | N26: 0.006 | O26: 0.0033 | P26: 0.0049 | Q26: -0.0002 | R26: 0.0214 | S26: 0.0224 | T26: 0.0225 | U26: 0.0219 | V26: 0.021 | W26: 0.0179 | X26: 0.0176 | Y26: 0.0135 | Z26: 0.0129 | AA26: 0.0126 | AB26: 0.0125 | AC26: 0.012 | AD26: 0.0115 | AE26: 0.0121 | AF26: 0.0122 | AG26: 0.0126 | AH26: 0.0127 | AI26: 0.012 | AJ26: 0.012 | AK26: 0.0119 | AL26: 0.0119 | AM26: 0.0118 | AN26: 0.0116 | AO26: 0.0117 | AP26: 0.0117 | AQ26: 0.0116 | AR26: 0.0115 | AS26: 0.0116 | AT26: 0.0117 | AU26: 0.0118 | AV26: 0.0119 | AW26: 0.0117 | AX26: 0.012 | AY26: 0.0121 | AZ26: 0.0124 | BA26: 0
A27: Total Income as a % of the Mortgages | B27: 0.0353 | C27: 0.0167 | D27: 0.0162 | E27: 0.016 | F27: 0.0158 | G27: 0.0159 | H27: 0.0165 | I27: 0.0175 | J27: 0.0186 | K27: 0.019 | L27: 0.0198 | M27: 0.0196 | N27: 0.0177 | O27: 0.0187 | P27: 0.0187 | Q27: 0.0193 | R27: 0.013 | S27: 0.0121 | T27: 0.009 | U27: 0.0087 | V27: 0.0076 | W27: 0.0078 | X27: 0.0075 | Y27: 0.0075 | Z27: 0.0076 | AA27: 0.0072 | AB27: 0.0072 | AC27: 0.0077 | AD27: 0.008 | AE27: 0.0074 | AF27: 0.0081 | AG27: 0.0074 | AH27: 0.0069 | AI27: 0.007 | AJ27: 0.0065 | AK27: 0.0063 | AL27: 0.0065 | AM27: 0.0062 | AN27: 0.0066 | AO27: 0.0068 | AP27: 0.007 | AQ27: 0.007 | AR27: 0.0073 | AS27: 0.0067 | AT27: 0.0065 | AU27: 0.0061 | AV27: 0.0065 | AW27: 0.0062 | AX27: 0.0056 | AY27: 0.0062 | AZ27: 0.006 | BA27: 0
A28: Quarterly surplus income to the Issuer | B28: 205 | C28: 2707 | D28: 2290 | E28: 2525 | F28: 2143 | G28: 2341 | H28: 2500 | I28: 2532 | J28: 2402 | K28: 2481 | L28: 2260 | M28: 1390 | N28: 1279 | O28: 1257 | P28: 1279 | Q28: 954 | R28: 1145 | S28: 835 | T28: 758 | U28: 795 | V28: 1023 | W28: 908 | X28: 1044 | Y28: 1186 | Z28: 1254 | AA28: 922 | AB28: 1060 | AC28: 988 | AD28: 838 | AE28: 795 | AF28: 1164 | AG28: 993 | AH28: 1049 | AI28: 1080 | AJ28: 1101 | AK28: 1063 | AL28: 1136 | AM28: 1004 | AN28: 1104 | AO28: 975 | AP28: 963 | AQ28: 1087 | AR28: 1183 | AS28: 1141 | AT28: 1012 | AU28: 823 | AV28: 890 | AW28: 977 | AX28: 793 | AY28: 774 | AZ28: 900 | BA28: 19915
A29: Surplus Income as a % of the Mortgages | B29: =+B28/1000000 -> 0.000205 | C29: =+C28/B6 -> 0.002794475465 | D29: 0.002427143305 | E29: 0.002750053367 | F29: 0.00240775425 | G29: 0.002728206108 | H29: 0.003015197803 | I29: 0.003186448783 | J29: 0.003137166807 | K29: 0.003369957797 | L29: 0.003190842001 | M29: 0.002139508252 | N29: 0.002128073769 | O29: 0.002250300756 | P29: 0.002392161043 | Q29: 0.001848930372 | R29: 0.002268031844 | S29: 0.001672371423 | T29: 0.001533956495 | U29: 0.00161511832 | V29: 0.002096689567 | W29: 0.001871350814 | X29: 0.002174424683 | Y29: 0.002499968382 | Z29: 0.002660054007 | AA29: 0.001965981274 | AB29: 0.002285413671 | AC29: 0.002141763964 | AD29: 0.001829518562 | AE29: 0.001747264268 | AF29: 0.00261873158 | AG29: 0.002249395178 | AH29: 0.002392006275 | AI29: 0.002483597905 | AJ29: 0.002549460931 | AK29: 0.002473761374 | AL29: 0.002664033901 | AM29: 0.002378803064 | AN29: 0.00263413447 | AO29: 0.002352546428 | AP29: 0.002349558094 | AQ29: 0.002678834316 | AR29: 0.002952713709 | AS29: 0.002887072488 | AT29: 0.002591284861 | AU29: 0.002169853802 | AV29: 0.002382894446 | AW29: 0.002649473356 | AX29: 0.002192997827 | AY29: 0.002174234913 | AZ29: 0.002578488459 | BA29: 0
A30: Losses as a % of the Mortgages | B30: =+B21/1000000 -> 0 | C30: =+C21/B6 -> 0 | D30: 0 | E30: 0 | F30: 0 | G30: 0 | H30: 5.186140221e-05 | I30: 2.391095059e-05 | J30: 0.0001149336715 | K30: 0.0001236058684 | L30: 4.376818674e-05 | M30: 1.231371656e-05 | N30: 0 | O30: 0 | P30: 0 | Q30: 0.0001182230112 | R30: 0.0005387813637 | S30: 0.00148811014 | T30: 0.0002023689307 | U30: =+U21/T6 -> 0.001231146795 | V30: 2.664414894e-05 | W30: 0.001238636387 | X30: 0.0007997883893 | Y30: 2.318689055e-05 | Z30: 9.969899389e-05 | AA30: 0.00017484866 | AB30: 0 | AC30: =+AC21/AB6 -> 0.0002666366068 | AD30: 0.0005523486827 | AE30: 0.0002175838522 | AF30: 0.0005646921191 | AG30: 0.0008381432183 | AH30: 0.0004264110329 | AI30: 0.0004921203257 | AJ30: 0.0001065169871 | AK30: =+AK21/AJ6 -> -3.723441391e-05 | AL30: 4.221180477e-05 | AM30: 0 | AN30: =+AN21/AM6 -> 2.385991367e-06 | AO30: 0.0004270776593 | AP30: 0.0007270698981 | AQ30: 0.0003326979141 | AR30: 0.0002845387682 | AS30: 0 | AT30: 0 | AU30: 0 | AV30: =+AV21/AU6 -> 0.0002222249877 | AW30: 6.237245362e-05 | AX30: 1.106177971e-05 | AY30: 0.0007078904368 | AZ30: 8.308462813e-05 | BA30: 0
A31: Number of Properties in Possession | B31: 1 | C31: 2 | D31: 3 | E31: 2 | F31: 2 | G31: 1 | H31: 3 | I31: =SUM(I88+I121) -> 3 | J31: 1 | K31: 1 | L31: =SUM(L88+L121) -> 0 | M31: 0 | N31: 0 | O31: =SUM(O88+O121) -> 2 | P31: 3 | Q31: 3 | R31: =SUM(R88+R121) -> 4 | S31: 3 | T31: 3 | U31: 2 | V31: =SUM(V88+V121) -> 3 | W31: 4 | X31: 3 | Y31: =SUM(Y88+Y121) -> 3 | Z31: 3 | AA31: 2 | AB31: =SUM(AB88+AB121) -> 2 | AC31: 2 | AD31: 2 | AE31: =SUM(AE88+AE121) -> 2 | AF31: 0 | AG31: 0 | AH31: =SUM(AH88+AH121) -> 0 | AI31: 0 | AJ31: 0 | AK31: =SUM(AK88+AK121) -> 0 | AL31: 0 | AM31: 0 | AN31: 1 | AO31: 0 | AP31: =SUM(AP88+AP121) -> 0 | AQ31: 0 | AR31: 0 | AS31: 0 | AT31: 0 | AU31: 0 | AV31: 1 | AW31: 0 | AX31: =SUM(AX88+AX121) -> 0 | AY31: 0 | AZ31: =SUM(AZ88+AZ121) -> 0 | BA31: 0
A32: Appointment of a Receiver of Rent | B32: 5 | C32: 8 | D32: 17 | E32: 15 | F32: 51 | G32: 38 | H32: 27 | I32: 27 | J32: 45 | K32: 35 | L32: 34 | M32: 27 | N32: 36 | O32: 60 | P32: 69 | Q32: 105 | R32: 101 | S32: 102 | T32: 114 | U32: =SUM(U89+U122) -> 105 | V32: 77 | W32: 71 | X32: 63 | Y32: 65 | Z32: 72 | AA32: 73 | AB32: 79 | AC32: 97 | AD32: 97 | AE32: 92 | AF32: 89 | AG32: 82 | AH32: 73 | AI32: 72 | AJ32: 73 | AK32: 67 | AL32: 64 | AM32: 67 | AN32: 63 | AO32: 64 | AP32: 60 | AQ32: 55 | AR32: 54 | AS32: 52 | AT32: 53 | AU32: 50 | AV32: 49 | AW32: 52 | AX32: =SUM(AX89+AX122) -> 52 | AY32: 49 | AZ32: =SUM(AZ89+AZ122) -> 48 | BA32: 0
A33: Average Number of months (Possessions) in Arrears at the Sale Date | B33: 0 | C33: 0 | D33: 0 | E33: 15 | F33: 0 | G33: 15.71 | H33: 0 | I33: 9.13 | J33: 13.14 | K33: 0 | L33: 18.37 | M33: 0 | N33: 0 | O33: 0 | P33: 0 | Q33: 0 | R33: 0 | S33: 28.13 | T33: 16.06 | U33: 15.33 | V33: 0 | W33: 14.7 | X33: 15.55 | Y33: 0 | Z33: 0 | AA33: 16.15 | AB33: 0 | AC33: 0 | AD33: 30.72 | AE33: 0 | AF33: 17.16 | AG33: 0 | AH33: 0 | AI33: 0 | AJ33: 0 | AK33: 0 | AL33: 0 | AM33: 0 | AN33: 0 | AO33: 3.14 | AP33: 0 | AQ33: 0 | AR33: 0 | AS33: 0 | AT33: 0 | AU33: 0 | AV33: 0 | AW33: 3.28 | AX33: 0 | AY33: 0 | AZ33: 0 | BA33: 0
A34: Average Number of months (RoR) in Arrears at the Sale Date from Dec 05 | B34: 0 | C34: 0 | D34: 0 | E34: 0.08 | F34: 7.06 | G34: 4.78 | H34: 2.54 | I34: 4.97 | J34: 9.21 | K34: 3.51 | L34: 2.73 | M34: 0 | N34: 1.49 | O34: 0 | P34: 5.3 | Q34: 11.45 | R34: 9.24 | S34: 9.58 | T34: 9.33 | U34: 23.92 | V34: 3.82 | W34: 12.71 | X34: 12.93 | Y34: 15.03 | Z34: 1.33 | AA34: 1 | AB34: 2.92 | AC34: 5.33 | AD34: 0.83 | AE34: 0.41 | AF34: 0.98 | AG34: 1.68 | AH34: 7.75 | AI34: 3.04 | AJ34: 4.79 | AK34: 0.66 | AL34: 9.72 | AM34: 0 | AN34: 3.16 | AO34: 0.26 | AP34: 1.28 | AQ34: 4.73 | AR34: 0.67 | AS34: 0 | AT34: 0 | AU34: 0 | AV34: 0 | AW34: 0 | AX34: 1.49 | AY34: 5.39 | AZ34: 1.39 | BA34: 1.29
A35: Arrears excluding Receiver of Rent and Possession Cases
A36: Performing Loans | B36: 0.9915 | C36: 0.9936 | D36: 0.9901 | E36: 0.989 | F36: 0.9925 | G36: 0.9903 | H36: 0.9924 | I36: 0.9953 | J36: 0.9929 | K36: 0.9927 | L36: 0.9875 | M36: 0.9738 | N36: 0.9753 | O36: 0.9772 | P36: 0.9767 | Q36: 0.9482 | R36: 0.9684 | S36: 0.9694 | T36: 0.9688 | U36: 0.9692 | V36: 0.9821 | W36: 0.9902 | X36: 0.9844 | Y36: 0.9821 | Z36: 0.9895 | AA36: 0.9901 | AB36: 0.9833 | AC36: 0.9849 | AD36: 0.9909 | AE36: 0.983 | AF36: 0.9872 | AG36: 0.9862 | AH36: 0.9906 | AI36: 0.9929 | AJ36: 0.9976 | AK36: 0.9909 | AL36: 0.994 | AM36: 0.9943 | AN36: 0.9981809987 | AO36: 0.9973204391 | AP36: 0.9977110057 | AQ36: 0.9980057122 | AR36: 0.9945263591 | AS36: 0.9974771261 | AT36: 0.9951535677 | AU36: 0.9952053912 | AV36: 0.9889100691 | AW36: 0.9928967034 | AX36: 0.9926679631 | AY36: 0.9985583776 | AZ36: 0.9964144732 | BA36: 0
A37: >1 to 2 months arrears | B37: 0.0049 | C37: 0.0035 | D37: 0.0072 | E37: 0.0056 | F37: 0.0049 | G37: 0.0061 | H37: 0.0042 | I37: 0.0017 | J37: 0.0053 | K37: 0.006 | L37: 0.0104 | M37: 0.0193 | N37: 0.0152 | O37: 0.0173 | P37: 0.0169 | Q37: 0.0365 | R37: 0.0196 | S37: 0.0225 | T37: 0.0247 | U37: 0.0219 | V37: 0.0087 | W37: 0.0053 | X37: 0.0114 | Y37: 0.0147 | Z37: 0.0091 | AA37: 0.0079 | AB37: 0.0147 | AC37: 0.0136 | AD37: 0.0079 | AE37: 0.0154 | AF37: 0.0117 | AG37: 0.0121 | AH37: 0.0079 | AI37: 0.0056 | AJ37: 0.0006 | AK37: 0.0073 | AL37: 0.0053 | AM37: 0.0006 | AN37: 0.001022458718 | AO37: 0.001596608747 | AP37: 0.001043120808 | AQ37: 0.0008986295846 | AR37: 0.00302950312 | AS37: 0.00169043778 | AT37: 0.003952224673 | AU37: 0.002187267344 | AV37: 0.01041289692 | AW37: 0.0004841030412 | AX37: 0.005939878855 | AY37: 0.0008108287022 | AZ37: 0.001262147345 | BA37: 0
A38: >2 to 3 months arrears | B38: 0.0014 | C38: 0.0013 | D38: 0.0015 | E38: 0.0029 | F38: 0.0012 | G38: 0.0025 | H38: 0.0023 | I38: 0.0018 | J38: 0.0007 | K38: 0.0008 | L38: 0.0017 | M38: 0.006 | N38: 0.0085 | O38: 0.0047 | P38: 0.0057 | Q38: 0.0105 | R38: 0.0055 | S38: 0.0014 | T38: 0.0022 | U38: 0.0043 | V38: 0.0073 | W38: 0.0023 | X38: 0.002 | Y38: 0.0023 | Z38: 0.0003 | AA38: 0.0003 | AB38: 0.0006 | AC38: 0.0003 | AD38: 0.0003 | AE38: 0.0005 | AF38: 0.0001 | AG38: 0.0008 | AH38: 0.0008 | AI38: 0.0008 | AJ38: 0.0011 | AK38: 0.0011 | AL38: 0.0001 | AM38: 0.0001 | AN38: 0.0001312821344 | AO38: 5.769190175e-05 | AP38: 0.0005670400262 | AQ38: 0.0002762916969 | AR38: 0.001674250444 | AS38: 0.0001884634921 | AT38: 0 | AU38: 0.00163620597 | AV38: 0 | AW38: 0.006069354681 | AX38: 0.0007722285508 | AY38: 6.209739982e-05 | AZ38: 0.001747201927 | BA38: 0
A39: >3 months arrears | B39: 0.0022 | C39: 0.0016 | D39: 0.0012 | E39: 0.0025 | F39: 0.0014 | G39: 0.0011 | H39: 0.0011 | I39: 0.0012 | J39: 0.0011 | K39: 0.0005 | L39: 0.0004 | M39: 0.0009 | N39: 0.001 | O39: 0.0008 | P39: 0.0007 | Q39: 0.0048 | R39: 0.0065 | S39: 0.0067 | T39: 0.0043 | U39: 0.0046 | V39: 0.0019 | W39: 0.0022 | X39: 0.0022 | Y39: 0.0009 | Z39: 0.0011 | AA39: 0.0017 | AB39: 0.0014 | AC39: 0.0012 | AD39: 0.0009 | AE39: 0.0011 | AF39: 0.001 | AG39: 0.0009 | AH39: 0.0007 | AI39: 0.0007 | AJ39: 0.0007 | AK39: 0.0007 | AL39: 0.0006 | AM39: 0.005 | AN39: 0.0006652604691 | AO39: 0.001025260209 | AP39: 0.000678833467 | AQ39: 0.0008193664831 | AR39: 0.0007698873651 | AS39: 0.0006439726527 | AT39: 0.0008942076183 | AU39: 0.0009711354454 | AV39: 0.0006770340117 | AW39: 0.000549838834 | AX39: 0.0006199294879 | AY39: 0.0005686963373 | AZ39: 0.000576177536 | BA39: 0
A40: Total | B40: =SUM(B36:B39) -> 1 | C40: 1 | D40: 1 | E40: 1 | F40: 1 | G40: 1 | H40: 1 | I40: 1 | J40: 1 | K40: 1 | L40: 1 | M40: 1 | N40: 1 | O40: 1 | P40: 1 | Q40: 1 | R40: 1 | S40: 1 | T40: 1 | U40: 1 | V40: 1 | W40: 1 | X40: 1 | Y40: 1 | Z40: 1 | AA40: 1 | AB40: 1 | AC40: =SUM(AC36:AC39) -> 1 | AD40: 1 | AE40: 1 | AF40: 1 | AG40: 1 | AH40: 1 | AI40: =SUM(AI36:AI39) -> 1 | AJ40: 1 | AK40: 1 | AL40: 1 | AM40: 1 | AN40: 1 | AO40: 1 | AP40: 1 | AQ40: 1 | AR40: 1 | AS40: 1 | AT40: 1 | AU40: 1 | AV40: 1 | AW40: 1 | AX40: 1 | AY40: 1 | AZ40: 1 | BA40: =SUM(BA36:BA39) -> 0
A41: Total Value of Arrears (£000's) | B41: 263 | C41: 191 | D41: 235 | E41: 244 | F41: 308 | G41: 285 | H41: 342 | I41: 413 | J41: 337 | K41: 347 | L41: 346 | M41: 423 | N41: 515 | O41: 465 | P41: 616 | Q41: 811 | R41: 635 | S41: 577 | T41: 528 | U41: 448 | V41: 396 | W41: 283 | X41: 242 | Y41: 229 | Z41: 215 | AA41: 221 | AB41: 212 | AC41: 213 | AD41: 164 | AE41: 192 | AF41: 165 | AG41: 157 | AH41: 111 | AI41: 95 | AJ41: 90 | AK41: 93 | AL41: 75 | AM41: 90 | AN41: 73 | AO41: 80 | AP41: 73.07842728 | AQ41: 62.76003011 | AR41: 69.62984803 | AS41: 59.61028019 | AT41: 58.90088876 | AU41: 60.41800946 | AV41: 67.69235064 | AW41: 71.9009931 | AX41: 62.97975173 | AY41: 52.31246009 | AZ41: 54.88899013 | BA41: 0
A42: Total Value of Arrears as a % of the Notes Issued (£1,000,000,000) | B42: =+B41/1000000 -> 0.000263 | C42: =+C41/1000000 -> 0.000191 | D42: 0.000235 | E42: 0.000244 | F42: 0.000308 | G42: 0.000285 | H42: 0.000342 | I42: 0.000413 | J42: 0.000337 | K42: 0.000347 | L42: 0.000346 | M42: 0.000423 | N42: 0.000515 | O42: 0.000465 | P42: 0.000616 | Q42: 0.000811 | R42: 0.000635 | S42: 0.000577 | T42: 0.000528 | U42: 0.000448 | V42: 0.000396 | W42: 0.000283 | X42: 0.000242 | Y42: 0.000229 | Z42: 0.000215 | AA42: 0.000221 | AB42: 0.000212 | AC42: =+AC41/1000000 -> 0.000213 | AD42: 0.000164 | AE42: 0.000192 | AF42: 0.000165 | AG42: 0.000157 | AH42: 0.000111 | AI42: =+AI41/1000000 -> 9.5e-05 | AJ42: 9e-05 | AK42: 9.3e-05 | AL42: 7.5e-05 | AM42: 9e-05 | AN42: 7.3e-05 | AO42: 8e-05 | AP42: 7.307842728e-05 | AQ42: =+AQ41/1000000 -> 6.276003011e-05 | AR42: 6.962984803e-05 | AS42: =+AS41/1000000 -> 5.961028019e-05 | AT42: 5.890088876e-05 | AU42: =+AU41/1000000 -> 6.041800946e-05 | AV42: 6.769235064e-05 | AW42: =+AW41/1000000 -> 7.19009931e-05 | AX42: 6.297975173e-05 | AY42: =+AY41/1000000 -> 5.231246009e-05 | AZ42: 5.488899013e-05 | BA42: =+BA41/1000000 -> 0
A44: Underlying Assets - Overall | B44: 2005-03-31 | C44: 2005-06-30 | D44: 2005-09-30 | E44: 2005-12-31 | F44: 2006-03-31 | G44: 2006-06-30 | H44: 2006-09-29 | I44: 2006-12-29 | J44: 2007-03-30 | K44: 2007-06-29 | L44: 2007-09-28 | M44: 2007-12-31 | N44: 2008-03-31 | O44: 2008-06-30 | P44: 2008-09-30 | Q44: 2008-12-31 | R44: 2009-03-31 | S44: 2009-06-30 | T44: 2009-09-30 | U44: 2009-12-31 | V44: 2010-03-31 | W44: 2010-06-30 | X44: 2010-09-30 | Y44: 2010-12-31 | Z44: 2011-03-31 | AA44: 2011-06-30 | AB44: 2011-09-30 | AC44: 2011-12-30 | AD44: 2012-03-30 | AE44: 2012-06-29 | AF44: 2012-09-28 | AG44: 2012-12-31 | AH44: 2013-03-28 | AI44: 2013-06-28 | AJ44: 2013-09-30 | AK44: 2013-12-31 | AL44: 2014-03-31 | AM44: 2014-06-30 | AN44: 2014-09-30 | AO44: 2014-12-31 | AP44: 2015-03-31 | AQ44: 2015-06-30 | AR44: =+AR5 -> 2015-09-30 | AS44: 2015-12-31 | AT44: 2016-03-31 | AU44: 2016-06-30 | AV44: 2016-09-30 | AW44: 2016-12-30 | AX44: =+AX5 -> 2017-03-31 | AY44: 2017-06-30 | AZ44: =+AZ5 -> 2017-09-29 | BA44: 2017-12-29
A45: Weighted Average LTV | B45: 0.772 | C45: 0.773 | D45: 0.7732 | E45: 0.7747 | F45: 0.7744 | G45: 0.7753 | H45: 0.775 | I45: 0.7752 | J45: 0.7753 | K45: 0.7742 | L45: 0.7761 | M45: 0.7743 | N45: 0.773 | O45: 0.7725 | P45: 0.7718 | Q45: 0.7714 | R45: 0.7712 | S45: 0.7704 | T45: 0.7702 | U45: 0.7682 | V45: 0.768 | W45: 0.7682 | X45: 0.7681 | Y45: 0.7681 | Z45: 0.7675 | AA45: 0.7682 | AB45: 0.7674 | AC45: 0.7671 | AD45: 0.7669 | AE45: 0.7687 | AF45: 0.768 | AG45: 0.7676 | AH45: 0.7673 | AI45: 0.7673 | AJ45: 0.7669 | AK45: 0.7673 | AL45: 0.7665 | AM45: 0.7662 | AN45: 0.7653867405 | AO45: 0.7647634274 | AP45: 0.7649350544 | AQ45: 0.7648565803 | AR45: 0.7637938286 | AS45: 0.7640303739 | AT45: 0.7636777253 | AU45: 0.763999322 | AV45: 0.7635360819 | AW45: 0.7629655893 | AX45: 0.7623722723 | AY45: 0.7619635555 | AZ45: 0.7619947426 | BA45: 0
A46: Weighted Average Nationwide Indexed LTV | B46: 0.6644 | C46: 0.6473 | D46: 0.6473 | E46: 0.6489 | F46: 0.6505 | G46: 0.66 | H46: 0.6583 | I46: 0.6528 | J46: 0.6498 | K46: 0.6472 | L46: 0.6383 | M46: 0.635 | N46: 0.64 | O46: 0.6585 | P46: 0.6848 | Q46: 0.738 | R46: 0.7612 | S46: 0.8069 | T46: 0.7874 | U46: 0.7581 | V46: 0.7455 | W46: 0.7458 | X46: 0.7221 | Y46: 0.7431 | Z46: 0.7473 | AA46: 0.7313 | AB46: 0.7314 | AC46: 0.7362 | AD46: 0.7566 | AE46: 0.7589 | AF46: 0.7495 | AG46: 0.748 | AH46: 0.7571 | AI46: 0.7569 | AJ46: 0.7227 | AK46: 0.721 | AL46: 0.7204 | AM46: 0.7115 | AN46: 0.6755156563 | AO46: 0.675109746 | AP46: 0.6757270236 | AQ46: 0.6772117725 | AR46: 0.6587932364 | AS46: 0.6582655955 | AT46: 0.6598530836 | AU46: 0.6575318971 | AV46: 0.6405792795 | AW46: 0.6395594894 | AX46: 0.6393452268 | AY46: 0.6392071994 | AZ46: 0.6243373975 | BA46: 0
A47: Weighted Average Halifax Indexed LTV | B47: 0.6585 | C47: 0.6635 | D47: 0.6654 | E47: 0.6549 | F47: 0.6407 | G47: 0.6508 | H47: 0.6509 | I47: 0.6468 | J47: 0.6454 | K47: 0.6313 | L47: 0.6208 | M47: 0.6194 | N47: 0.6339 | O47: 0.6531 | P47: 0.6764 | Q47: 0.7285 | R47: 0.7775 | S47: 0.8095 | T47: 0.8118 | U47: 0.7884 | V47: 0.7743 | W47: 0.7705 | X47: 0.7553 | Y47: 0.766 | Z47: 0.7764 | AA47: 0.7949 | AB47: 0.7874 | AC47: 0.7816 | AD47: 0.7933 | AE47: 0.7939 | AF47: 0.7946 | AG47: 0.7959 | AH47: 0.8011 | AI47: 0.7867 | AJ47: 0.7645 | AK47: 0.7486 | AL47: 0.7525 | AM47: 0.7378 | AN47: 0.7145401471 | AO47: 0.6934455727 | AP47: 0.7011186189 | AQ47: 0.6802343145 | AR47: 0.6499151327 | AS47: 0.6456159608 | AT47: 0.651499192 | AU47: 0.6301177773 | AV47: N/A | AW47: N/A | AX47: N/A | AY47: N/A | AZ47: N/A | BA47: N/A
A48: % of Variable Rate Mortgages | B48: 0.0796 | C48: 0.0761 | D48: 0.0732 | E48: 0.0724 | F48: 0.0658 | G48: 0.0376 | H48: 0.0358 | I48: 0.0336 | J48: 0.0322 | K48: 0.0308 | L48: 0.0303 | M48: 0.0307 | N48: 0.0303 | O48: 0.0305 | P48: 0.0301 | Q48: 0.029 | R48: 0.0354 | S48: 0.0322 | T48: 0.033 | U48: 0.0327 | V48: 0.0315 | W48: 0.0294 | X48: 0.0281 | Y48: 0.0274 | Z48: 0.0271 | AA48: 0.0267 | AB48: 0.0265 | AC48: 0.0258 | AD48: 0.0245 | AE48: 0.0243 | AF48: 0.0235 | AG48: 0.023 | AH48: 0.0225 | AI48: 0.0218 | AJ48: 0.0216 | AK48: 0.0212 | AL48: 0.0209 | AM48: 0.0205 | AN48: 0.01965322315 | AO48: 0.01922818348 | AP48: 0.01818979117 | AQ48: 0.01813185821 | AR48: 0.01792527988 | AS48: 0.01737864547 | AT48: 0.01732872671 | AU48: 0.01714512303 | AV48: 0.01712079749 | AW48: 0.01687963221 | AX48: 0.01569881858 | AY48: 0.01542124383 | AZ48: 0.01519267473 | BA48: 0
A49: % of Fixed Rate Mortgages | B49: 0.3014 | C49: 0.3105 | D49: 0.3135 | E49: 0.3143 | F49: 0.3047 | G49: 0.3412 | H49: 0.3533 | I49: 0.3764 | J49: 0.3857 | K49: 0.3857 | L49: 0.367 | M49: 0.4016 | N49: 0.419 | O49: 0.4436 | P49: 0.4001 | Q49: 0.3639 | R49: 0.3649 | S49: 0.3488 | T49: 0.2602 | U49: 0.2213 | V49: 0.1874 | W49: 0.0994 | X49: 0.099 | Y49: 0.0651 | Z49: 0.0522 | AA49: 0.0361 | AB49: 0.0325 | AC49: 0.0282 | AD49: 0.0264 | AE49: 0.0262 | AF49: 0.0256 | AG49: 0.0258 | AH49: 0.0253 | AI49: 0 | AJ49: 0 | AK49: 0 | AL49: 0 | AM49: 0 | AN49: 0 | AO49: 0 | AP49: 0 | AQ49: 0 | AR49: 0 | AS49: 0 | AT49: 0 | AU49: 0 | AV49: 0 | AW49: 0 | AX49: 0 | AY49: 0 | AZ49: 0 | BA49: 0
A50: % of Base Rate Mortgages | B50: 0.0211 | C50: 0.0217 | D50: 0.0221 | E50: 0.0227 | F50: 0.0228 | G50: 0.0344 | H50: 0.0353 | I50: 0.0477 | J50: 0.0621 | K50: 0.0684 | L50: 0.0769 | M50: 0.0834 | N50: 0.0896 | O50: 0.0901 | P50: 0.0898 | Q50: 0.0896 | R50: 0.0758 | S50: 0.0763 | T50: 0.0765 | U50: 0.0771 | V50: 0.0772 | W50: 0.078 | X50: 0.0782 | Y50: 0.0782 | Z50: 0.0786 | AA50: 0.0792 | AB50: 0.0796 | AC50: 0.0793 | AD50: 0.0791 | AE50: 0.0809 | AF50: 0.0813 | AG50: 0.0818 | AH50: 0.0824 | AI50: 0.0827 | AJ50: 0.0827 | AK50: 0.0829 | AL50: 0.0835 | AM50: 0.0831 | AN50: 0.08287363867 | AO50: 0.08318313654 | AP50: 0.08301952533 | AQ50: 0.08368450495 | AR50: 0.08442570224 | AS50: 0.08505941495 | AT50: 0.08653534336 | AU50: 0.08731322239 | AV50: 0.08585474395 | AW50: 0.08637209607 | AX50: 0.08684240087 | AY50: 0.0873561931 | AZ50: 0.08751207302 | BA50: 0
A51: % of Libor Linked Mortgages | B51: 0.5977 | C51: 0.5917 | D51: 0.5911 | E51: 0.5905 | F51: 0.6067 | G51: 0.5868 | H51: 0.5755 | I51: 0.5422 | J51: 0.5201 | K51: 0.5151 | L51: 0.5257 | M51: 0.4843 | N51: 0.4611 | O51: 0.4358 | P51: 0.4801 | Q51: 0.5175 | R51: 0.524 | S51: 0.5428 | T51: 0.6303 | U51: 0.669 | V51: 0.7039 | W51: 0.7932 | X51: 0.7947 | Y51: 0.8293 | Z51: 0.8421 | AA51: 0.858 | AB51: 0.8614 | AC51: 0.8667 | AD51: 0.87 | AE51: 0.8686 | AF51: 0.8695 | AG51: 0.8694 | AH51: 0.8697 | AI51: 0.8955 | AJ51: 0.8958 | AK51: 0.8959 | AL51: 0.8957 | AM51: 0.8964 | AN51: 0.8974731382 | AO51: 0.89758868 | AP51: 0.8987906835 | AQ51: 0.8981836368 | AR51: 0.8976490179 | AS51: 0.8975619396 | AT51: 0.8961359299 | AU51: 0.8955416546 | AV51: 0.8970244586 | AW51: 0.8967482717 | AX51: 0.8974587806 | AY51: 0.8972225631 | AZ51: 0.8972952523 | BA51: 0
A52: Weighted Average Loan Size | B52: 99742.34 | C52: 100779.42 | D52: 102348.03 | E52: 103577.46 | F52: 104528.35 | G52: 102223.24 | H52: 103586.95 | I52: 104598 | J52: 105610.58 | K52: 110616.46 | L52: 110190.3 | M52: 111941.41 | N52: 112892.49 | O52: 113855.08 | P52: 114432.06 | Q52: 115077.02 | R52: 115443.01 | S52: 116024.29 | T52: 116640.64 | U52: 117117.61 | V52: 117569.95 | W52: 117880.53 | X52: 118423.92 | Y52: 118835.06 | Z52: 119090.05 | AA52: 118895.42 | AB52: 119107.11 | AC52: 118972.57 | AD52: 119202.77 | AE52: 117620.97 | AF52: 117783.36 | AG52: 117761.46 | AH52: 117655.12 | AI52: 117800.45 | AJ52: 117890.29 | AK52: 118089.59 | AL52: 117926.99 | AM52: 118159.99 | AN52: 118582.126 | AO52: 118492.1385 | AP52: 118681.9271 | AQ52: 118851.4958 | AR52: 119218.7114 | AS52: 119577.4188 | AT52: 118564.6222 | AU52: 118796.2315 | AV52: 119183.1056 | AW52: 119145.1286 | AX52: 119218.7852 | AY52: 118762.0626 | AZ52: 118934.4529 | BA52: 0
A53: Weighted Average Interest Rate | B53: 0.06224 | C53: 0.06081 | D53: 0.05998 | E53: 0.06052 | F53: 0.06023 | G53: 0.05947 | H53: 0.06039 | I53: 0.06181 | J53: 0.06331 | K53: 0.065 | L53: 0.06824 | M53: 0.06842 | N53: 0.06549 | O53: 0.06547 | P53: 0.06601 | Q53: 0.06492 | R53: 0.04711 | S53: 0.04079 | T53: 0.03543 | U53: 0.03056 | V53: 0.03015 | W53: 0.02741 | X53: 0.02797 | Y53: 0.02689 | Z53: 0.02657 | AA53: 0.02682 | AB53: 0.02676 | AC53: 0.02767 | AD53: 0.02843 | AE53: 0.02829 | AF53: 0.02648 | AG53: 0.024 | AH53: 0.02386 | AI53: 0.02303 | AJ53: 0.02309 | AK53: 0.02308 | AL53: 0.02307 | AM53: 0.02308 | AN53: 0.02320294761 | AO53: 0.02330334049 | AP53: 0.02328801297 | AQ53: 0.02332247392 | AR53: 0.0233618269 | AS53: 0.02336623252 | AT53: 0.02365899647 | AU53: 0.0237139476 | AV53: 0.02321604359 | AW53: 0.02173830138 | AX53: 0.02156356207 | AY53: 0.02149755409 | AZ53: 0.0214086588 | BA53: 0
A54: Weighted Average Maturity Date (years) | B54: 20.35 | C54: 20.18 | D54: 19.95 | E54: 19.74 | F54: 19.47 | G54: 19.24 | H54: 19.03 | I54: 18.78 | J54: 18.55 | K54: 18.33 | L54: 18.2 | M54: 17.88 | N54: 17.62 | O54: 17.32 | P54: 17.09 | Q54: 16.84 | R54: 16.64 | S54: 16.41 | T54: 16.16 | U54: 15.92 | V54: 15.69 | W54: 15.46 | X54: 15.23 | Y54: 15 | Z54: 14.76 | AA54: 14.56 | AB54: 14.33 | AC54: 14.1 | AD54: 13.86 | AE54: 13.56 | AF54: 13.34 | AG54: 13.11 | AH54: 12.88 | AI54: 12.67 | AJ54: 12.45 | AK54: 12.21 | AL54: 11.98 | AM54: 11.8 | AN54: 11.62473805 | AO54: 11.4245306 | AP54: 11.22089754 | AQ54: 11.0229578 | AR54: 10.86118291 | AS54: 10.70800847 | AT54: 10.58388764 | AU54: 10.40091361 | AV54: 10.16738318 | AW54: 9.93660489 | AX54: 9.698011534 | AY54: 9.490727574 | AZ54: 9.276479145 | BA54: 0
A55: Weighted Average Seasoning (months) | B55: 21.9 | C55: 24.93 | D55: 27.76 | E55: 30.22 | F55: 33.2 | G55: 36.02 | H55: 39.11 | I55: 42.09 | J55: 45.1 | K55: 48.02 | L55: 51.45 | M55: 54.84 | N55: 57.93 | O55: 61.34 | P55: 64.52 | Q55: 67.47 | R55: 70.33 | S55: 73.3 | T55: 76.31 | U55: 79.42 | V55: 82.33 | W55: 85.32 | X55: 88.34 | Y55: 91.32 | Z55: 94.27 | AA55: 97.25 | AB55: 100.29 | AC55: 103.31 | AD55: 106.23 | AE55: 109.42 | AF55: 112.4 | AG55: 115.36 | AH55: 118.28 | AI55: 121.22 | AJ55: 124.23 | AK55: 127.22 | AL55: 130.07 | AM55: 133.03 | AN55: 135.9372701 | AO55: 138.8093622 | AP55: 141.6855984 | AQ55: 144.5616543 | AR55: 147.5190567 | AS55: 150.5469739 | AT55: 153.2274242 | AU55: 156.153825 | AV55: 159.0389691 | AW55: 162.110358 | AX55: 164.9627297 | AY55: 167.7186188 | AZ55: 170.6137887 | BA55: 0
A56: % of Interest Only Mortgages | B56: 0.8599 | C56: 0.8634 | D56: 0.87 | E56: 0.872 | F56: 0.8735 | G56: 0.88 | H56: 0.8811 | I56: 0.8835 | J56: 0.8858 | K56: 0.8868 | L56: 0.8853 | M56: 0.8846 | N56: 0.8878 | O56: 0.891 | P56: 0.896 | Q56: 0.8994 | R56: 0.9061 | S56: 0.9088 | T56: 0.9106 | U56: 0.9113 | V56: 0.9135 | W56: 0.9165 | X56: 0.9192 | Y56: 0.9201 | Z56: 0.9218 | AA56: 0.923 | AB56: 0.9244 | AC56: 0.9267 | AD56: 0.9282 | AE56: 0.9279 | AF56: 0.9291 | AG56: 0.9326 | AH56: 0.9339 | AI56: 0.9357 | AJ56: 0.9367 | AK56: 0.9386 | AL56: 0.9405 | AM56: 0.9422 | AN56: 0.9439586696 | AO56: 0.9451580158 | AP56: 0.9464403346 | AQ56: 0.9479131474 | AR56: 0.9494792059 | AS56: 0.9509386156 | AT56: 0.9547534655 | AU56: 0.9554191536 | AV56: 0.9554229783 | AW56: 0.9563286703 | AX56: 0.9582624161 | AY56: 0.958826506 | AZ56: 0.9601437056 | BA56: 0
A57: % of Repayment Mortgages | B57: 0.1401 | C57: 0.1366 | D57: 0.13 | E57: 0.128 | F57: 0.1265 | G57: 0.12 | H57: 0.1189 | I57: 0.1165 | J57: 0.1142 | K57: 0.1132 | L57: 0.1147 | M57: 0.1154 | N57: 0.1122 | O57: 0.109 | P57: 0.104 | Q57: 0.1006 | R57: 0.0939 | S57: 0.0912 | T57: 0.0894 | U57: 0.0887 | V57: 0.0865 | W57: 0.0835 | X57: 0.0808 | Y57: 0.0799 | Z57: 0.0782 | AA57: 0.077 | AB57: 0.0756 | AC57: 0.0733 | AD57: 0.0718 | AE57: 0.0721 | AF57: 0.0709 | AG57: 0.0674 | AH57: 0.0661 | AI57: 0.0643 | AJ57: 0.0633 | AK57: 0.0614 | AL57: 0.0595 | AM57: 0.0578 | AN57: 0.05604133036 | AO57: 0.05484198419 | AP57: 0.05355966539 | AQ57: 0.0520868526 | AR57: 0.05052079415 | AS57: 0.04906138443 | AT57: 0.04524653448 | AU57: 0.04458084638 | AV57: 0.04457702165 | AW57: 0.04367132972 | AX57: 0.04173758388 | AY57: 0.04117349398 | AZ57: 0.03985629437 | BA57: 0
A58: % of Mortgages in London | B58: 0.1881 | C58: 0.1854 | D58: 0.1847 | E58: 0.1862 | F58: 0.1843 | G58: 0.1806 | H58: 0.1784 | I58: 0.1786 | J58: 0.1792 | K58: 0.1795 | L58: 0.1651 | M58: 0.1627 | N58: 0.1629 | O58: 0.1574 | P58: 0.1569 | Q58: 0.1544 | R58: 0.153 | S58: 0.1538 | T58: 0.1551 | U58: 0.1535 | V58: 0.1531 | W58: 0.1536 | X58: 0.1517 | Y58: 0.1504 | Z58: 0.1497 | AA58: 0.146 | AB58: 0.1456 | AC58: 0.145 | AD58: 0.1434 | AE58: 0.1456 | AF58: 0.146 | AG58: 0.1449 | AH58: 0.1435 | AI58: 0.1437 | AJ58: 0.1433 | AK58: 0.1428 | AL58: 0.1407 | AM58: 0.1399 | AN58: 0.138774386 | AO58: 0.1390729321 | AP58: 0.1382144013 | AQ58: 0.1388380938 | AR58: 0.139287743 | AS58: 0.1374176604 | AT58: 0.1325776904 | AU58: 0.1304443375 | AV58: 0.1297212335 | AW58: 0.1238643616 | AX58: 0.1199004365 | AY58: 0.120863145 | AZ58: 0.120338439 | BA58: 0
A59: % of Mortgages in the South East | B59: 0.2582 | C59: 0.257 | D59: 0.2544 | E59: 0.2515 | F59: 0.2516 | G59: 0.252 | H59: 0.2532 | I59: 0.252 | J59: 0.2492 | K59: 0.2464 | L59: 0.2507 | M59: 0.2486 | N59: 0.2472 | O59: 0.2429 | P59: 0.2431 | Q59: 0.2422 | R59: 0.2428 | S59: 0.2437 | T59: 0.2434 | U59: 0.2445 | V59: 0.2446 | W59: 0.2443 | X59: 0.246 | Y59: 0.2469 | Z59: 0.2471 | AA59: 0.2476 | AB59: 0.2484 | AC59: 0.2486 | AD59: 0.2483 | AE59: 0.2353 | AF59: 0.2349 | AG59: 0.2353 | AH59: 0.2339 | AI59: 0.2335 | AJ59: 0.2338 | AK59: 0.2334 | AL59: 0.2324 | AM59: 0.2339 | AN59: 0.2333072552 | AO59: 0.2322434627 | AP59: 0.2322496186 | AQ59: 0.2324670508 | AR59: 0.2306829092 | AS59: 0.2310924481 | AT59: 0.2321346228 | AU59: 0.2320278476 | AV59: 0.2314396244 | AW59: 0.2315118513 | AX59: 0.231347038 | AY59: 0.2318453272 | AZ59: 0.2295922121 | BA59: 0
A60: % of Owner Occupied Mortgages | B60: 0.0085 | C60: 0.008 | D60: 0.0077 | E60: 0.0074 | F60: 0.0071 | G60: 0.0067 | H60: 0.0066 | I60: 0.0066 | J60: 0.0066 | K60: 0.0065 | L60: 0.0069 | M60: 0.0071 | N60: 0.0073 | O60: 0.0075 | P60: 0.0075 | Q60: 0.0076 | R60: 0.0076 | S60: 0.0072 | T60: 0.007 | U60: 0.0068 | V60: 0.0068 | W60: 0.0067 | X60: 0.0066 | Y60: 0.0066 | Z60: 0.0066 | AA60: 0.0066 | AB60: 0.0064 | AC60: 0.0064 | AD60: 0.006 | AE60: 0.0061 | AF60: 0.0059 | AG60: 0.0057 | AH60: 0.0056 | AI60: 0.0054 | AJ60: 0.0054 | AK60: 0.0053 | AL60: 0.0053 | AM60: 0.0052 | AN60: 0.005166777367 | AO60: 0.005113875602 | AP60: 0.004980885779 | AQ60: 0.004971779043 | AR60: 0.004750751183 | AS60: 0.004550954356 | AT60: 0.004589027813 | AU60: 0.004450151685 | AV60: 0.00445072457 | AW60: 0.004331799294 | AX60: 0.004334894033 | AY60: 0.004241087389 | AZ60: 0.004170606315 | BA60: 0
A61: % of Investment Home Loans - Professional Landlords | B61: 0.7895 | C61: 0.7885 | D61: 0.792 | E61: 0.797 | F61: 0.8006 | G61: 0.8022 | H61: 0.8043 | I61: 0.8066 | J61: 0.808 | K61: 0.8152 | L61: 0.8195 | M61: 0.8244 | N61: 0.8287 | O61: 0.8374 | P61: 0.8381 | Q61: 0.8413 | R61: 0.8449 | S61: 0.8448 | T61: 0.8454 | U61: 0.8454 | V61: 0.8455 | W61: 0.846 | X61: 0.8473 | Y61: 0.8483 | Z61: 0.8491 | AA61: 0.8485 | AB61: 0.8496 | AC61: 0.8503 | AD61: 0.8515 | AE61: 0.8487 | AF61: 0.8491 | AG61: 0.8488 | AH61: 0.8496 | AI61: 0.8506 | AJ61: 0.8512 | AK61: 0.8514 | AL61: 0.8521 | AM61: 0.8532 | AN61: 0.8545123296 | AO61: 0.854798601 | AP61: 0.855144475 | AQ61: 0.8555326803 | AR61: 0.8552545336 | AS61: 0.8552433619 | AT61: 0.8533317486 | AU61: 0.8539483304 | AV61: 0.8553482898 | AW61: 0.8545558646 | AX61: 0.8547546051 | AY61: 0.8539823856 | AZ61: 0.8548637095 | BA61: 0
A62: % of Investment Home Loans - Emerging Professional Landlords | B62: 0.202 | C62: 0.2034 | D62: 0.2002 | E62: 0.1957 | F62: 0.1923 | G62: 0.1911 | H62: 0.1891 | I62: 0.1867 | J62: 0.1854 | K62: 0.1783 | L62: 0.1736 | M62: 0.1685 | N62: 0.164 | O62: 0.1551 | P62: 0.1544 | Q62: 0.151 | R62: 0.1475 | S62: 0.148 | T62: 0.1475 | U62: 0.1478 | V62: 0.1477 | W62: 0.1472 | X62: 0.1461 | Y62: 0.145 | Z62: 0.1443 | AA62: 0.145 | AB62: 0.144 | AC62: 0.1433 | AD62: 0.1425 | AE62: 0.1452 | AF62: 0.145 | AG62: 0.1455 | AH62: 0.1448 | AI62: 0.1441 | AJ62: 0.1434 | AK62: 0.1433 | AL62: 0.1426 | AM62: 0.1416 | AN62: 0.1403208931 | AO62: 0.1400875234 | AP62: 0.1398746392 | AQ62: 0.1394955406 | AR62: 0.1399947152 | AS62: 0.1402056837 | AT62: 0.1420792236 | AU62: 0.141601518 | AV62: 0.1402009856 | AW62: 0.1411123361 | AX62: 0.1409105009 | AY62: 0.1417765271 | AZ62: 0.1409656842 | BA62: 0
A63: Weighted Average Interest Coverage Ratio (calculated at the origination date) | B63: 1.93 | C63: 1.9 | D63: 1.92 | E63: 1.92 | F63: 1.94 | G63: 1.92 | H63: 1.94 | I63: 1.95 | J63: 1.96 | K63: 1.96 | L63: 1.99 | M63: 2.01 | N63: 2.01 | O63: 2.03 | P63: 2.04 | Q63: 2.04 | R63: 2.04 | S63: 2.05 | T63: 2.04 | U63: 2.05 | V63: 2.05 | W63: 2.06 | X63: 2.06 | Y63: 2.06 | Z63: 2.07 | AA63: 2.07 | AB63: 2.07 | AC63: 2.07 | AD63: 2.07 | AE63: 2.07 | AF63: 2.07 | AG63: 2.07 | AH63: 2.08 | AI63: 2.07 | AJ63: 2.07 | AK63: 2.07 | AL63: 2.07 | AM63: 2.07 | AN63: 2.075402598 | AO63: 2.073666761 | AP63: 2.066455071 | AQ63: 2.064883467 | AR63: 2.064441884 | AS63: 2.066217894 | AT63: 2.056723875 | AU63: 2.05976424 | AV63: 2.06042971 | AW63: 2.067218346 | AX63: 2.071006742 | AY63: 2.069233476 | AZ63: 2.067411241 | BA63: 0
A64: % of Paragon Originated Assets | B64: 0.8239 | C64: 0.8219 | D64: 0.8234 | E64: 0.8266 | F64: 0.8268 | G64: 0.8259 | H64: 0.8289 | I64: 0.8326 | J64: 0.8353 | K64: 0.8388 | L64: 0.8627 | M64: 0.8695 | N64: 0.8661 | O64: 0.8701 | P64: 0.873 | Q64: 0.8776 | R64: 0.8798 | S64: 0.8801 | T64: 0.8804 | U64: 0.8813 | V64: 0.8811 | W64: 0.881 | X64: 0.8816 | Y64: 0.8824 | Z64: 0.8821 | AA64: 0.8813 | AB64: 0.8818 | AC64: 0.8812 | AD64: 0.8815 | AE64: 0.8786 | AF64: 0.8786 | AG64: 0.8791 | AH64: 0.8803 | AI64: 0.8798 | AJ64: 0.88 | AK64: 0.8798 | AL64: 0.8798 | AM64: 0.8803 | AN64: 0.88003198 | AO64: 0.8799280502 | AP64: 0.8813021297 | AQ64: 0.8817064891 | AR64: 0.8827498024 | AS64: 0.8835689876 | AT64: 0.8817455519 | AU64: 0.8835809025 | AV64: 0.8838715303 | AW64: 0.8837949644 | AX64: 0.8838079547 | AY64: 0.8826010531 | AZ64: 0.8833738448 | BA64: 0
A65: % of Mortgage Trust Originated Assets | B65: 0.1761 | C65: 0.1781 | D65: 0.1766 | E65: 0.1734 | F65: 0.1732 | G65: 0.1741 | H65: 0.1711 | I65: 0.1674 | J65: 0.1647 | K65: 0.1612 | L65: 0.1373 | M65: 0.1305 | N65: 0.1339 | O65: 0.1299 | P65: 0.127 | Q65: 0.1224 | R65: 0.1202 | S65: 0.1199 | T65: 0.1196 | U65: 0.1187 | V65: 0.1189 | W65: 0.119 | X65: 0.1184 | Y65: 0.1176 | Z65: 0.1179 | AA65: 0.1187 | AB65: 0.1182 | AC65: 0.1188 | AD65: 0.1185 | AE65: 0.1214 | AF65: 0.1214 | AG65: 0.1209 | AH65: 0.1197 | AI65: 0.1202 | AJ65: 0.12 | AK65: 0.1202 | AL65: 0.1202 | AM65: 0.1197 | AN65: 0.11996802 | AO65: 0.1200719498 | AP65: 0.1186978703 | AQ65: 0.1182935109 | AR65: 0.1172501976 | AS65: 0.1164310124 | AT65: 0.1182544481 | AU65: 0.1164190975 | AV65: 0.1161284697 | AW65: 0.1162050356 | AX65: 0.1161920453 | AY65: 0.1173989469 | AZ65: 0.1166261552 | BA65: 0
A67: Underlying Assets - Paragon Originated Assets | B67: 2005-03-31 | C67: 2005-06-30 | D67: 2005-09-30 | E67: 2005-12-31 | F67: 2006-03-31 | G67: 2006-06-30 | H67: 2006-09-29 | I67: 2006-12-29 | J67: 2007-03-30 | K67: 2007-06-29 | L67: 2007-09-28 | M67: 2007-12-31 | N67: 2008-03-31 | O67: 2008-06-30 | P67: 2008-09-30 | Q67: 2008-12-31 | R67: 2009-03-31 | S67: 2009-06-30 | T67: 2009-09-30 | U67: 2009-12-31 | V67: 2010-03-31 | W67: 2010-06-30 | X67: 2010-09-30 | Y67: 2010-12-31 | Z67: 2011-03-31 | AA67: 2011-06-30 | AB67: 2011-09-30 | AC67: 2011-12-30 | AD67: 2012-03-30 | AE67: 2012-06-29 | AF67: 2012-09-28 | AG67: 2012-12-31 | AH67: 2013-03-28 | AI67: 2013-06-28 | AJ67: 2013-09-30 | AK67: 2013-12-31 | AL67: 2014-03-31 | AM67: 2014-06-30 | AN67: 2014-09-30 | AO67: 2014-12-31 | AP67: 2015-03-31 | AQ67: 2015-06-30 | AR67: =+AR44 -> 2015-09-30 | AS67: 2015-12-31 | AT67: 2016-03-31 | AU67: 2016-06-30 | AV67: 2016-09-30 | AW67: 2016-12-30 | AX67: =+AX44 -> 2017-03-31 | AY67: 2017-06-30 | AZ67: =+AZ44 -> 2017-09-29 | BA67: 2017-12-29
A68: Weighted Average LTV | B68: 0.7704 | C68: 0.7714 | D68: 0.7718 | E68: 0.7736 | F68: 0.7734 | G68: 0.7748 | H68: 0.7746 | I68: 0.7745 | J68: 0.7748 | K68: 0.774 | L68: 0.7743 | M68: 0.7723 | N68: 0.7706 | O68: 0.7704 | P68: 0.7695 | Q68: 0.7692 | R68: 0.7692 | S68: 0.7686 | T68: 0.7685 | U68: 0.7672 | V68: 0.7669 | W68: 0.7673 | X68: 0.7671 | Y68: 0.767 | Z68: 0.7663 | AA68: 0.7672 | AB68: 0.7664 | AC68: 0.7662 | AD68: 0.7659 | AE68: 0.768 | AF68: 0.7672 | AG68: 0.7669 | AH68: 0.7667 | AI68: 0.7667 | AJ68: 0.7662 | AK68: 0.7667 | AL68: 0.7658 | AM68: 0.7654 | AN68: 0.7646059727 | AO68: 0.7638660527 | AP68: 0.7638772208 | AQ68: 0.763897942 | AR68: 0.7632130689 | AS68: 0.7637145275 | AT68: 0.7634708611 | AU68: 0.7636577497 | AV68: 0.7630420086 | AW68: 0.762557116 | AX68: 0.7618665293 | AY68: 0.761562712 | AZ68: 0.761463827 | BA68: 0
A69: Weighted Average Nationwide Indexed LTV | B69: 0.64 | C69: 0.6226 | D69: 0.6236 | E69: 0.6261 | F69: 0.6277 | G69: 0.6313 | H69: 0.6309 | I69: 0.6293 | J69: 0.6285 | K69: 0.6249 | L69: 0.6213 | M69: 0.6324 | N69: 0.6376 | O69: 0.657 | P69: 0.683 | Q69: 0.7356 | R69: 0.7594 | S69: 0.8057 | T69: 0.7871 | U69: 0.759 | V69: 0.7471 | W69: 0.748 | X69: 0.724 | Y69: 0.7448 | Z69: 0.7496 | AA69: 0.7343 | AB69: 0.7343 | AC69: 0.7392 | AD69: 0.7608 | AE69: 0.7633 | AF69: 0.7539 | AG69: 0.7528 | AH69: 0.7625 | AI69: 0.7627 | AJ69: 0.7284 | AK69: 0.7261 | AL69: 0.7284 | AM69: 0.7201 | AN69: 0.6847880089 | AO69: 0.684435977 | AP69: 0.6848769765 | AQ69: 0.686827841 | AR69: 0.6681981091 | AS69: 0.6682765415 | AT69: 0.6711225586 | AU69: 0.6685559797 | AV69: 0.6516674946 | AW69: 0.6512670495 | AX69: 0.6512471102 | AY69: 0.6512961611 | AZ69: 0.6356829276 | BA69: 0
A70: Weighted Average Halifax Indexed LTV | B70: 0.6335 | C70: 0.6396 | D70: 0.6424 | E70: 0.6324 | F70: 0.6192 | G70: 0.6303 | H70: 0.6306 | I70: 0.6289 | J70: 0.6254 | K70: 0.6236 | L70: 0.6172 | M70: 0.6166 | N70: 0.6301 | O70: 0.6506 | P70: 0.6737 | Q70: 0.7259 | R70: 0.7751 | S70: 0.8069 | T70: 0.8103 | U70: 0.7882 | V70: 0.7746 | W70: 0.7721 | X70: 0.7557 | Y70: 0.766 | Z70: 0.7766 | AA70: 0.7966 | AB70: 0.7891 | AC70: 0.7833 | AD70: 0.797 | AE70: 0.7967 | AF70: 0.798 | AG70: 0.8003 | AH70: 0.8053 | AI70: 0.7916 | AJ70: 0.7688 | AK70: 0.7522 | AL70: 0.7586 | AM70: 0.7445 | AN70: 0.7214859414 | AO70: 0.7013759159 | AP70: 0.708833655 | AQ70: 0.6874644081 | AR70: 0.6570191668 | AS70: 0.6536613968 | AT70: 0.6605018064 | AU70: 0.6393032085 | AV70: N/A | AW70: N/A | AX70: N/A | AY70: N/A | AZ70: N/A | BA70: N/A
A71: % of Variable Rate Mortgages | B71: 0.0967 | C71: 0.0926 | D71: 0.0889 | E71: 0.0876 | F71: 0.0796 | G71: 0.0456 | H71: 0.0432 | I71: 0.0404 | J71: 0.0385 | K71: 0.0367 | L71: 0.0351 | M71: 0.0353 | N71: 0.035 | O71: 0.0351 | P71: 0.0344 | Q71: 0.0331 | R71: 0.0402 | S71: 0.0366 | T71: 0.0374 | U71: 0.0371 | V71: 0.0357 | W71: 0.0333 | X71: 0.0318 | Y71: 0.0311 | Z71: 0.0307 | AA71: 0.0303 | AB71: 0.03 | AC71: 0.0293 | AD71: 0.0278 | AE71: 0.0276 | AF71: 0.0268 | AG71: 0.0262 | AH71: 0.0256 | AI71: 0.0248 | AJ71: 0.0245 | AK71: 0.0241 | AL71: 0.0237 | AM71: 0.0232 | AN71: 0.02233239654 | AO71: 0.02185199515 | AP71: 0.02063967686 | AQ71: 0.0205645058 | AR71: 0.02030618396 | AS71: 0.01966869109 | AT71: 0.01965275206 | AU71: 0.0194041349 | AV71: 0.01937023301 | AW71: 0.01909903641 | AX71: 0.01776270342 | AY71: 0.01747249652 | AZ71: 0.01719846565 | BA71: 0
A72: % of Fixed Rate Mortgages | B72: 0.202 | C72: 0.2123 | D72: 0.2182 | E72: 0.2237 | F72: 0.251 | G72: 0.2956 | H72: 0.3194 | I72: 0.3439 | J72: 0.3593 | K72: 0.3536 | L72: 0.3625 | M72: 0.3824 | N72: 0.3997 | O72: 0.4334 | P72: 0.3881 | Q72: 0.3756 | R72: 0.3828 | S72: 0.3657 | T72: 0.267 | U72: 0.2222 | V72: 0.1955 | W72: 0.1089 | X72: 0.1084 | Y72: 0.071 | Z72: 0.0573 | AA72: 0.0396 | AB72: 0.0361 | AC72: 0.0312 | AD72: 0.0292 | AE72: 0.0297 | AF72: 0.029 | AG72: 0.0292 | AH72: 0.0287 | AI72: 0 | AJ72: 0 | AK72: 0 | AL72: 0 | AM72: 0 | AN72: 0 | AO72: 0 | AP72: 0 | AQ72: 0 | AR72: 0 | AS72: 0 | AT72: 0 | AU72: 0 | AV72: 0 | AW72: 0 | AX72: 0 | AY72: 0 | AZ72: 0 | BA72: 0
A73: % of Base Rate Mortgages | B73: 0.0257 | C73: 0.0264 | D73: 0.0269 | E73: 0.0275 | F73: 0.0276 | G73: 0.0416 | H73: 0.0426 | I73: 0.0558 | J73: 0.0717 | K73: 0.0775 | L73: 0.0838 | M73: 0.0909 | N73: 0.0982 | O73: 0.0981 | P73: 0.0974 | Q73: 0.0973 | R73: 0.081 | S73: 0.0815 | T73: 0.0817 | U73: 0.0819 | V73: 0.0821 | W73: 0.0833 | X73: 0.0835 | Y73: 0.0833 | Z73: 0.0837 | AA73: 0.0847 | AB73: 0.0851 | AC73: 0.0847 | AD73: 0.0844 | AE73: 0.0867 | AF73: 0.0871 | AG73: 0.0876 | AH73: 0.0881 | AI73: 0.0884 | AJ73: 0.0883 | AK73: 0.0886 | AL73: 0.0892 | AM73: 0.0898 | AN73: 0.08969069706 | AO73: 0.09000536363 | AP73: 0.09071251775 | AQ73: 0.09138300002 | AR73: 0.09206867311 | AS73: 0.09266160716 | AT73: 0.09472861082 | AU73: 0.09536167064 | AV73: 0.09363994645 | AW73: 0.09416801576 | AX73: 0.0946450294 | AY73: 0.09528708641 | AZ73: 0.09533087271 | BA73: 0
A74: % of Libor Linked Mortgages | B74: 0.6756 | C74: 0.6687 | D74: 0.6659 | E74: 0.6612 | F74: 0.6419 | G74: 0.6172 | H74: 0.5947 | I74: 0.5598 | J74: 0.5305 | K74: 0.5322 | L74: 0.5185 | M74: 0.4914 | N74: 0.4671 | O74: 0.4335 | P74: 0.4801 | Q74: 0.4941 | R74: 0.4959 | S74: 0.5163 | T74: 0.6139 | U74: 0.6587 | V74: 0.6867 | W74: 0.7744 | X74: 0.7764 | Y74: 0.8146 | Z74: 0.8282 | AA74: 0.8454 | AB74: 0.8488 | AC74: 0.8547 | AD74: 0.8585 | AE74: 0.856 | AF74: 0.8571 | AG74: 0.8571 | AH74: 0.8576 | AI74: 0.8868 | AJ74: 0.8872 | AK74: 0.8873 | AL74: 0.8871 | AM74: 0.8869 | AN74: 0.8879769064 | AO74: 0.8881426412 | AP74: 0.8886478054 | AQ74: 0.8880524942 | AR74: 0.8876251429 | AS74: 0.8876697018 | AT74: 0.8856186371 | AU74: 0.8852341945 | AV74: 0.8869898205 | AW74: 0.8867329478 | AX74: 0.8875922672 | AY74: 0.8872404171 | AZ74: 0.8874706616 | BA74: 0
A75: Weighted Average Loan Size | B75: 95407.79 | C75: 96668.27 | D75: 98230.96 | E75: 99511.28 | F75: 100547.76 | G75: 97745.09 | H75: 99298.6 | I75: 100504.73 | J75: 101637.22 | K75: 107011.81 | L75: 107768.09 | M75: 109480.91 | N75: 110301.3 | O75: 111484.73 | P75: 112083.3 | Q75: 112931.27 | R75: 113445.45 | S75: 114205.99 | T75: 114826.56 | U75: 115378.84 | V75: 115861.1 | W75: 116206.93 | X75: 116857.94 | Y75: 117378.18 | Z75: 117622.46 | AA75: 117390.19 | AB75: 117669.59 | AC75: 117543.01 | AD75: 117857.55 | AE75: 116057.35 | AF75: 116295.43 | AG75: 116329.98 | AH75: 116245.76 | AI75: 116399.91 | AJ75: 116455.49 | AK75: 116586.93 | AL75: 116478.09 | AM75: 116713.72 | AN75: 117199.3704 | AO75: 117094.5132 | AP75: 117402.8423 | AQ75: 117594.6362 | AR75: 118101.4132 | AS75: 118621.1412 | AT75: 117469.514 | AU75: 117735.7689 | AV75: 118090.5297 | AW75: 118015.1734 | AX75: 118190.9846 | AY75: 117716.6884 | AZ75: 117941.8211 | BA75: 0
A76: Weighted Average Interest Rate | B76: 0.06425 | C76: 0.06257 | D76: 0.0611 | E76: 0.06162 | F76: 0.06143 | G76: 0.06034 | H76: 0.06092 | I76: 0.06241 | J76: 0.06384 | K76: 0.06571 | L76: 0.06785 | M76: 0.06871 | N76: 0.06592 | O76: 0.06568 | P76: 0.06628 | Q76: 0.06629 | R76: 0.0479 | S76: 0.0415 | T76: 0.03603 | U76: 0.03055 | V76: 0.03038 | W76: 0.02761 | X76: 0.02823 | Y76: 0.02702 | Z76: 0.0266 | AA76: 0.02687 | AB76: 0.02674 | AC76: 0.02757 | AD76: 0.02841 | AE76: 0.02834 | AF76: 0.02669 | AG76: 0.02409 | AH76: 0.02394 | AI76: 0.02301 | AJ76: 0.02306 | AK76: 0.02304 | AL76: 0.02303 | AM76: 0.02302 | AN76: 0.02309987282 | AO76: 0.02322356899 | AP76: 0.02318925523 | AQ76: 0.02322048035 | AR76: 0.02323875953 | AS76: 0.02326163206 | AT76: 0.0235683666 | AU76: 0.02364499087 | AV76: 0.02334966612 | AW76: 0.02167101231 | AX76: 0.02151866815 | AY76: 0.02151893799 | AZ76: 0.02143271233 | BA76: 0
A77: Weighted Average Maturity Date (years) | B77: 20.09 | C77: 19.92 | D77: 19.71 | E77: 19.5 | F77: 19.26 | G77: 19.04 | H77: 18.84 | I77: 18.6 | J77: 18.36 | K77: 18.18 | L77: 17.97 | M77: 17.64 | N77: 17.38 | O77: 17.08 | P77: 16.86 | Q77: 16.63 | R77: 16.44 | S77: 16.21 | T77: 15.96 | U77: 15.72 | V77: 15.49 | W77: 15.27 | X77: 15.04 | Y77: 14.81 | Z77: 14.58 | AA77: 14.38 | AB77: 14.15 | AC77: 13.92 | AD77: 13.68 | AE77: 13.37 | AF77: 13.15 | AG77: 12.93 | AH77: 12.7 | AI77: 12.5 | AJ77: 12.27 | AK77: 12.03 | AL77: 11.81 | AM77: 11.63 | AN77: 11.46114662 | AO77: 11.25820871 | AP77: 11.0564902 | AQ77: 10.8653474 | AR77: 10.71558335 | AS77: 10.57967659 | AT77: 10.46506474 | AU77: 10.28373576 | AV77: 10.05623523 | AW77: 9.825469034 | AX77: 9.590478177 | AY77: 9.385273797 | AZ77: 9.170484343 | BA77: 0
A78: Weighted Average Seasoning (months) | B78: 24.71 | C78: 27.79 | D78: 30.43 | E78: 32.82 | F78: 35.82 | G78: 38.62 | H78: 41.67 | I78: 44.58 | J78: 47.53 | K78: 50.38 | L78: 53.46 | M78: 56.8 | N78: 59.96 | O78: 63.37 | P78: 66.51 | Q78: 69.38 | R78: 72.19 | S78: 75.15 | T78: 78.16 | U78: 81.25 | V78: 84.16 | W78: 87.15 | X78: 90.16 | Y78: 93.13 | Z78: 96.07 | AA78: 99.07 | AB78: 102.11 | AC78: 105.14 | AD78: 108.04 | AE78: 111.31 | AF78: 114.28 | AG78: 117.23 | AH78: 120.11 | AI78: 123.06 | AJ78: 126.07 | AK78: 129.05 | AL78: 131.88 | AM78: 134.84 | AN78: 137.7322419 | AO78: 140.587468 | AP78: 143.4294209 | AQ78: 146.2841583 | AR78: 149.2142605 | AS78: 152.2293918 | AT78: 154.8975344 | AU78: 157.7849401 | AV78: 160.660596 | AW78: 163.7392641 | AX78: 166.5771276 | AY78: 169.3210157 | AZ78: 172.1860743 | BA78: 0
A79: % of Interest Only Mortgages | B79: 0.8438 | C79: 0.8479 | D79: 0.8557 | E79: 0.8581 | F79: 0.8597 | G79: 0.8669 | H79: 0.8685 | I79: 0.8718 | J79: 0.8729 | K79: 0.8748 | L79: 0.8759 | M79: 0.8752 | N79: 0.8778 | O79: 0.8813 | P79: 0.8877 | Q79: 0.8916 | R79: 0.8995 | S79: 0.9028 | T79: 0.9048 | U79: 0.9053 | V79: 0.9077 | W79: 0.9109 | X79: 0.9139 | Y79: 0.915 | Z79: 0.9168 | AA79: 0.9181 | AB79: 0.9197 | AC79: 0.9221 | AD79: 0.9238 | AE79: 0.9241 | AF79: 0.9253 | AG79: 0.9294 | AH79: 0.9308 | AI79: 0.9326 | AJ79: 0.9339 | AK79: 0.9362 | AL79: 0.9385 | AM79: 0.9403 | AN79: 0.942224149 | AO79: 0.9438143989 | AP79: 0.9452911916 | AQ79: 0.9467412723 | AR79: 0.9482691658 | AS79: 0.9499242798 | AT79: 0.9541945113 | AU79: 0.954782575 | AV79: 0.9547496871 | AW79: 0.9557070756 | AX79: 0.957444681 | AY79: 0.9580060979 | AZ79: 0.9587077623 | BA79: 0
A80: % of Repayment Mortgages | B80: 0.1562 | C80: 0.1521 | D80: 0.1443 | E80: 0.1419 | F80: 0.1403 | G80: 0.1331 | H80: 0.1315 | I80: 0.1282 | J80: 0.1271 | K80: 0.1252 | L80: 0.1241 | M80: 0.1248 | N80: 0.1222 | O80: 0.1187 | P80: 0.1123 | Q80: 0.1084 | R80: 0.1005 | S80: 0.0972 | T80: 0.0952 | U80: 0.0947 | V80: 0.0923 | W80: 0.0891 | X80: 0.0861 | Y80: 0.085 | Z80: 0.0832 | AA80: 0.0819 | AB80: 0.0803 | AC80: 0.0779 | AD80: 0.0762 | AE80: 0.0759 | AF80: 0.0747 | AG80: 0.0706 | AH80: 0.0692 | AI80: 0.0674 | AJ80: 0.0661 | AK80: 0.0638 | AL80: 0.0615 | AM80: 0.0597 | AN80: 0.05777585098 | AO80: 0.05618560115 | AP80: 0.05470880837 | AQ80: 0.05325872772 | AR80: 0.05173083424 | AS80: 0.05007572018 | AT80: 0.04580548872 | AU80: 0.04521742502 | AV80: 0.04525031294 | AW80: 0.04429292438 | AX80: 0.04255531899 | AY80: 0.04199390214 | AZ80: 0.04129223769 | BA80: 0
A81: % of Mortgages in London | B81: 0.1532 | C81: 0.1512 | D81: 0.1503 | E81: 0.1512 | F81: 0.1499 | G81: 0.1436 | H81: 0.1417 | I81: 0.1406 | J81: 0.1401 | K81: 0.1401 | L81: 0.1379 | M81: 0.1344 | N81: 0.1334 | O81: 0.1301 | P81: 0.1303 | Q81: 0.1287 | R81: 0.1289 | S81: 0.1301 | T81: 0.1314 | U81: 0.1302 | V81: 0.1296 | W81: 0.1298 | X81: 0.1278 | Y81: 0.1269 | Z81: 0.126 | AA81: 0.1215 | AB81: 0.1207 | AC81: 0.1199 | AD81: 0.1188 | AE81: 0.1207 | AF81: 0.1213 | AG81: 0.1211 | AH81: 0.1208 | AI81: 0.1208 | AJ81: 0.1211 | AK81: 0.1203 | AL81: 0.1182 | AM81: 0.1178 | AN81: 0.1166994295 | AO81: 0.1173915741 | AP81: 0.1174163519 | AQ81: 0.1176021984 | AR81: 0.1188184322 | AS81: 0.1176975043 | AT81: 0.1113662657 | AU81: 0.109075495 | AV81: 0.1077662347 | AW81: 0.101121079 | AX81: 0.09705157659 | AY81: 0.09825405902 | AZ81: 0.09742037269 | BA81: 0
A82: % of Mortgages in the South East | B82: 0.2491 | C82: 0.2468 | D82: 0.2434 | E82: 0.2408 | F82: 0.24 | G82: 0.2407 | H82: 0.2416 | I82: 0.2428 | J82: 0.2409 | K82: 0.2385 | L82: 0.241 | M82: 0.2403 | N82: 0.2389 | O82: 0.2335 | P82: 0.2345 | Q82: 0.2347 | R82: 0.2348 | S82: 0.2353 | T82: 0.2349 | U82: 0.2362 | V82: 0.2364 | W82: 0.2367 | X82: 0.238 | Y82: 0.2386 | Z82: 0.2388 | AA82: 0.2392 | AB82: 0.2402 | AC82: 0.2403 | AD82: 0.2397 | AE82: 0.2247 | AF82: 0.224 | AG82: 0.2242 | AH82: 0.2224 | AI82: 0.2221 | AJ82: 0.2219 | AK82: 0.2214 | AL82: 0.2204 | AM82: 0.2214 | AN82: 0.2208125551 | AO82: 0.2192310564 | AP82: 0.2188133441 | AQ82: 0.219204606 | AR82: 0.2174077199 | AS82: 0.217874987 | AT82: 0.2194763354 | AU82: 0.2202967236 | AV82: 0.2199263271 | AW82: 0.2202825173 | AX82: 0.2204082284 | AY82: 0.220592812 | AZ82: 0.2191481778 | BA82: 0
A83: % of Owner Occupied Mortgages | B83: 0.0104 | C83: 0.0098 | D83: 0.0094 | E83: 0.0089 | F83: 0.0086 | G83: 0.0081 | H83: 0.0079 | I83: 0.008 | J83: 0.0079 | K83: 0.0078 | L83: 0.008 | M83: 0.0082 | N83: 0.0084 | O83: 0.0086 | P83: 0.0086 | Q83: 0.0087 | R83: 0.0086 | S83: 0.0082 | T83: 0.008 | U83: 0.0078 | V83: 0.0077 | W83: 0.0076 | X83: 0.0075 | Y83: 0.0075 | Z83: 0.0075 | AA83: 0.0074 | AB83: 0.0073 | AC83: 0.0073 | AD83: 0.0069 | AE83: 0.0069 | AF83: 0.0067 | AG83: 0.0065 | AH83: 0.0064 | AI83: 0.0061 | AJ83: 0.0061 | AK83: 0.006 | AL83: 0.006 | AM83: 0.0059 | AN83: 0.005871124554 | AO83: 0.005811697446 | AP83: 0.005651734645 | AQ83: 0.005638814168 | AR83: 0.005381764085 | AS83: 0.005150649716 | AT83: 0.005204480821 | AU83: 0.005036496005 | AV83: 0.005035488096 | AW83: 0.004901362271 | AX83: 0.004904791827 | AY83: 0.004805214512 | AZ83: 0.004721224586 | BA83: 0
A84: % of Investment Home Loans - Professional Landlords | B84: 0.8307 | C84: 0.8314 | D84: 0.8336 | E84: 0.8366 | F84: 0.8396 | G84: 0.84 | H84: 0.8481 | I84: 0.8463 | J84: 0.849 | K84: 0.8554 | L84: 0.855 | M84: 0.8613 | N84: 0.8663 | O84: 0.8721 | P84: 0.872 | Q84: 0.8728 | R84: 0.8757 | S84: 0.8761 | T84: 0.8765 | U84: 0.8769 | V84: 0.8772 | W84: 0.8777 | X84: 0.8788 | Y84: 0.8794 | Z84: 0.8803 | AA84: 0.8796 | AB84: 0.88 | AC84: 0.881 | AD84: 0.882 | AE84: 0.8796 | AF84: 0.8796 | AG84: 0.8796 | AH84: 0.8806 | AI84: 0.8819 | AJ84: 0.8822 | AK84: 0.8824 | AL84: 0.8832 | AM84: 0.884 | AN84: 0.8855566527 | AO84: 0.8862772623 | AP84: 0.8863055608 | AQ84: 0.8866320626 | AR84: 0.8861036614 | AS84: 0.8860870414 | AT84: 0.8844561075 | AU84: 0.8842683394 | AV84: 0.885351396 | AW84: 0.8845126478 | AX84: 0.8841004914 | AY84: 0.8838716911 | AZ84: 0.8843927464 | BA84: 0
A85: % of Investment Home Loans - Emerging Professional Landlords | B85: 0.1589 | C85: 0.1588 | D85: 0.157 | E85: 0.1545 | F85: 0.1518 | G85: 0.1519 | H85: 0.148 | I85: 0.1457 | J85: 0.1431 | K85: 0.1368 | L85: 0.137 | M85: 0.1305 | N85: 0.1253 | O85: 0.1193 | P85: 0.1194 | Q85: 0.1185 | R85: 0.1157 | S85: 0.1158 | T85: 0.1155 | U85: 0.1154 | V85: 0.1151 | W85: 0.1147 | X85: 0.1137 | Y85: 0.1131 | Z85: 0.1122 | AA85: 0.1129 | AB85: 0.1128 | AC85: 0.1117 | AD85: 0.1111 | AE85: 0.1135 | AF85: 0.1137 | AG85: 0.114 | AH85: 0.113 | AI85: 0.112 | AJ85: 0.1117 | AK85: 0.1116 | AL85: 0.1108 | AM85: 0.1101 | AN85: 0.1085722228 | AO85: 0.1079110403 | AP85: 0.1080427045 | AQ85: 0.1077291233 | AR85: 0.1085145746 | AS85: 0.1087623088 | AT85: 0.1103394117 | AU85: 0.1106951646 | AV85: 0.1096131159 | AW85: 0.1105859899 | AX85: 0.1109947168 | AY85: 0.1113230944 | AZ85: 0.1108860291 | BA85: 0
A86: Weighted Average Interest Coverage Ratio (calculated at the origination date) | B86: 1.97 | C86: 1.96 | D86: 1.97 | E86: 1.97 | F86: 1.97 | G86: 1.96 | H86: 1.97 | I86: 1.98 | J86: 1.99 | K86: 1.99 | L86: 2 | M86: 2.01 | N86: 2.02 | O86: 2.03 | P86: 2.04 | Q86: 2.04 | R86: 2.04 | S86: 2.04 | T86: 2.04 | U86: 2.04 | V86: 2.05 | W86: 2.05 | X86: 2.06 | Y86: 2.06 | Z86: 2.06 | AA86: 2.06 | AB86: 2.06 | AC86: 2.07 | AD86: 2.06 | AE86: 2.07 | AF86: 2.07 | AG86: 2.06 | AH86: 2.06 | AI86: 2.06 | AJ86: 2.06 | AK86: 2.06 | AL86: 2.06 | AM86: 2.06 | AN86: 2.059917883 | AO86: 2.057708877 | AP86: 2.048250452 | AQ86: 2.045598395 | AR86: 2.043896632 | AS86: 2.044390692 | AT86: 2.037255571 | AU86: 2.039247606 | AV86: 2.039187764 | AW86: 2.044778819 | AX86: 2.048153931 | AY86: 2.044886523 | AZ86: 2.041638177 | BA86: 0
A87: PML Lifetime Redemption Rate | B87: 0.1466 | C87: 0.147 | D87: 0.1441 | E87: 0.1425 | F87: 0.1451 | G87: 0.1471 | H87: 0.1507 | I87: 0.1505 | J87: 0.151 | K87: 0.151 | L87: 0.1584 | M87: 0.1673 | N87: 0.1758 | O87: 0.1761 | P87: 0.1739 | Q87: 0.1682 | R87: 0.1613 | S87: 0.1553 | T87: 0.1491 | U87: 0.144 | V87: 0.1391 | W87: 0.1352 | X87: 0.1318 | Y87: 0.1276 | Z87: 0.1239 | AA87: 0.1212 | AB87: 0.1179 | AC87: 0.115 | AD87: 0.1122 | AE87: 0.1119 | AF87: 0.1094 | AG87: 0.1069 | AH87: 0.1047 | AI87: 0.1026 | AJ87: 0.1004 | AK87: 0.0986 | AL87: 0.0972 | AM87: 0.0955 | AN87: 0.0943 | AO87: 0.0932 | AP87: 0.0918 | AQ87: 0.0908 | AR87: 0.09 | AS87: 0.089 | AT87: 0.0897 | AU87: 0.0889 | AV87: 0.0881 | AW87: 0.0879 | AX87: 0.0874 | AY87: 0.0873 | AZ87: 0.0866 | BA87: 1
A88: Number of Properties in Possession | B88: 1 | C88: 2 | D88: 3 | E88: 2 | F88: 2 | G88: 1 | H88: 3 | I88: 3 | J88: 1 | K88: 1 | L88: 0 | M88: 0 | N88: 0 | O88: 2 | P88: 3 | Q88: 3 | R88: 4 | S88: 3 | T88: 3 | U88: 2 | V88: 3 | W88: 4 | X88: 3 | Y88: 3 | Z88: 3 | AA88: 2 | AB88: 2 | AC88: 2 | AD88: 2 | AE88: 2 | AF88: 0 | AG88: 0 | AH88: 0 | AI88: 0 | AJ88: 0 | AK88: 0 | AL88: 0 | AM88: 0 | AN88: 0 | AO88: 0 | AP88: 0 | AQ88: 0 | AR88: 0 | AS88: 0 | AT88: 0 | AU88: 0 | AV88: 1 | AW88: 0 | AX88: 0 | AY88: 0 | AZ88: 0 | BA88: 0
A89: Appointment of a Receiver of Rent | B89: 5 | C89: 7 | D89: 14 | E89: 15 | F89: 49 | G89: 30 | H89: 20 | I89: 19 | J89: 37 | K89: 28 | L89: 28 | M89: 20 | N89: 28 | O89: 54 | P89: 60 | Q89: 88 | R89: 88 | S89: 84 | T89: 97 | U89: 91 | V89: 64 | W89: 59 | X89: 52 | Y89: 54 | Z89: 62 | AA89: 63 | AB89: 65 | AC89: 83 | AD89: 84 | AE89: 79 | AF89: 76 | AG89: 70 | AH89: 65 | AI89: 64 | AJ89: 65 | AK89: 60 | AL89: 58 | AM89: 61 | AN89: 57 | AO89: 58 | AP89: 54 | AQ89: 50 | AR89: 49 | AS89: 47 | AT89: 47 | AU89: 45 | AV89: 44 | AW89: 48 | AX89: 48 | AY89: 45 | AZ89: 45 | BA89: 0
A90: PML Quarterly Losses | B90: 0 | C90: 0 | D90: 0 | E90: 0 | F90: 0 | G90: 0 | H90: 43 | I90: 0 | J90: 88 | K90: 64 | L90: 27 | M90: 8 | N90: -70 | O90: 0 | P90: -3 | Q90: 3 | R90: 143 | S90: 742 | T90: 98 | U90: 395 | V90: 13 | W90: 558 | X90: 353 | Y90: 11 | Z90: 47 | AA90: 82 | AB90: -71 | AC90: 122 | AD90: 253 | AE90: 99 | AF90: 252 | AG90: 252 | AH90: 123 | AI90: 213 | AJ90: 85 | AK90: 12 | AL90: 29 | AM90: -29 | AN90: 2 | AO90: 158 | AP90: 300 | AQ90: 135 | AR90: 115 | AS90: -63 | AT90: -34 | AU90: -34 | AV90: 84 | AW90: 24 | AX90: 5 | AY90: 253 | AZ90: 16 | BA90: 86
A91: Arrears excluding Receiver of Rent and Possession Cases
A92: Performing Loans | B92: 0.9943 | C92: 0.9957 | D92: 0.9909 | E92: 0.9906 | F92: 0.9927 | G92: 0.9911 | H92: 0.9933 | I92: 0.9952 | J92: 0.9948 | K92: 0.9938 | L92: 0.9895 | M92: 0.9712 | N92: 0.9746 | O92: 0.9792 | P92: 0.9783 | Q92: 0.9489 | R92: 0.9687 | S92: 0.9704 | T92: 0.9695 | U92: 0.968 | V92: 0.9809 | W92: 0.9899 | X92: 0.9843 | Y92: 0.9813 | Z92: 0.9885 | AA92: 0.9893 | AB92: 0.9816 | AC92: 0.9831 | AD92: 0.9902 | AE92: 0.9814 | AF92: 0.9858 | AG92: 0.9848 | AH92: 0.9907 | AI92: 0.9923 | AJ92: 0.9977 | AK92: 0.9901 | AL92: 0.9941 | AM92: 0.9941 | AN92: 0.9979321158 | AO92: 0.996953159 | AP92: 0.9974017748 | AQ92: 0.9977368065 | AR92: 0.9937956621 | AS92: 0.9975725185 | AT92: 0.9949455634 | AU92: 0.99502044 | AV92: 0.9882628768 | AW92: 0.9923211199 | AX92: 0.9916943694 | AY92: 0.9987013856 | AZ92: 0.9961050654 | BA92: 0
A93: >1 to 2 months arrears | B93: 0.0032 | C93: 0.0017 | D93: 0.0061 | E93: 0.0061 | F93: 0.0052 | G93: 0.0068 | H93: 0.0026 | I93: 0.002 | J93: 0.0035 | K93: 0.0052 | L93: 0.0089 | M93: 0.0211 | N93: 0.0157 | O93: 0.0149 | P93: 0.0149 | Q93: 0.0391 | R93: 0.0223 | S93: 0.0235 | T93: 0.0266 | U93: 0.0248 | V93: 0.0096 | W93: 0.006 | X93: 0.0121 | Y93: 0.0151 | Z93: 0.0099 | AA93: 0.0084 | AB93: 0.0162 | AC93: 0.0152 | AD93: 0.0084 | AE93: 0.0168 | AF93: 0.0129 | AG93: 0.0138 | AH93: 0.0077 | AI93: 0.0063 | AJ93: 0.0007 | AK93: 0.0079 | AL93: 0.0051 | AM93: 0.0002 | AN93: 0.001162355525 | AO93: 0.001815451565 | AP93: 0.001184040855 | AQ93: 0.001019799002 | AR93: 0.003433922903 | AS93: 0.001484913549 | AT93: 0.004040113385 | AU93: 0.002027737357 | AV93: 0.01097091455 | AW93: 0.0005483932093 | AX93: 0.006728613078 | AY93: 0.0005832617723 | AZ93: 0.001430724942 | BA93: 0
A94: >2 to 3 months arrears | B94: 0.0012 | C94: 0.0016 | D94: 0.0015 | E94: 0.0005 | F94: 0.0004 | G94: 0.0011 | H94: 0.0027 | I94: 0.0013 | J94: 0.0009 | K94: 0.0006 | L94: 0.0011 | M94: 0.0066 | N94: 0.0091 | O94: 0.005 | P94: 0.0063 | Q94: 0.0076 | R94: 0.0052 | S94: 0.0012 | T94: 0.0009 | U94: 0.0029 | V94: 0.0073 | W94: 0.0027 | X94: 0.0023 | Y94: 0.0026 | Z94: 0.0003 | AA94: 0.0004 | AB94: 0.0007 | AC94: 0.0003 | AD94: 0.0003 | AE94: 0.0006 | AF94: 0.0001 | AG94: 0.0005 | AH94: 0.001 | AI94: 0.0005 | AJ94: 0.0009 | AK94: 0.0013 | AL94: 0.0001 | AM94: 0.0001 | AN94: 0.0001492446703 | AO94: 6.559957377e-05 | AP94: 0.0006436441035 | AQ94: 0.0003135463173 | AR94: 0.001897752442 | AS94: 0.0002133973203 | AT94: 0 | AU94: 0.001852381073 | AV94: 0 | AW94: 0.006507628024 | AX94: 0.0008747698822 | AY94: 7.042164936e-05 | AZ94: 0.001811075513 | BA94: 0
A95: >3 months arrears | B95: 0.0013 | C95: 0.001 | D95: 0.0015 | E95: 0.0028 | F95: 0.0017 | G95: 0.001 | H95: 0.0014 | I95: 0.0015 | J95: 0.0008 | K95: 0.0004 | L95: 0.0005 | M95: 0.0011 | N95: 0.0006 | O95: 0.0009 | P95: 0.0005 | Q95: 0.0044 | R95: 0.0038 | S95: 0.0049 | T95: 0.003 | U95: 0.0043 | V95: 0.0022 | W95: 0.0014 | X95: 0.0013 | Y95: 0.001 | Z95: 0.0013 | AA95: 0.0019 | AB95: 0.0015 | AC95: 0.0014 | AD95: 0.0011 | AE95: 0.0012 | AF95: 0.0012 | AG95: 0.0009 | AH95: 0.0006 | AI95: 0.0009 | AJ95: 0.0007 | AK95: 0.0007 | AL95: 0.0007 | AM95: 0.0056 | AN95: 0.0007562840126 | AO95: 0.001165789837 | AP95: 0.0007705402407 | AQ95: 0.0009298482226 | AR95: 0.0008726625293 | AS95: 0.0007291706042 | AT95: 0.00101432323 | AU95: 0.001099441606 | AV95: 0.0007662086196 | AW95: 0.0006228588898 | AX95: 0.0007022475982 | AY95: 0.0006449309338 | AZ95: 0.0006531341805 | BA95: 0
A96: Total | B96: =+B95+B94+B93+B92 -> 1 | C96: 1 | D96: 1 | E96: 1 | F96: 1 | G96: 1 | H96: 1 | I96: 1 | J96: 1 | K96: 1 | L96: =SUM(L92:L95) -> 1 | M96: 1 | N96: 1 | O96: 1 | P96: 1 | Q96: 1 | R96: 1 | S96: 1 | T96: 1 | U96: 1 | V96: 1 | W96: 1 | X96: 1 | Y96: 1 | Z96: 1 | AA96: 1 | AB96: 1 | AC96: =SUM(AC92:AC95) -> 1 | AD96: 1 | AE96: 1 | AF96: 1 | AG96: 1 | AH96: 1 | AI96: =SUM(AI92:AI95) -> 1 | AJ96: 1 | AK96: 1 | AL96: 1 | AM96: 1 | AN96: 1 | AO96: 1 | AP96: 1 | AQ96: 1 | AR96: 1 | AS96: 1 | AT96: 1 | AU96: 1 | AV96: 1 | AW96: 1 | AX96: 1 | AY96: 1 | AZ96: 1 | BA96: =SUM(BA92:BA95) -> 0
A99: Underlying Assets - Mortgage Trust Originated Assets | B99: 2005-03-31 | C99: 2005-06-30 | D99: 2005-09-30 | E99: 2005-12-31 | F99: 2006-03-31 | G99: 2006-06-30 | H99: 2006-09-29 | I99: 2006-12-29 | J99: 2007-03-30 | K99: 2007-06-29 | L99: 2007-09-28 | M99: 2007-12-31 | N99: 2008-03-31 | O99: 2008-06-30 | P99: 2008-09-30 | Q99: 2008-12-31 | R99: 2009-03-31 | S99: 2009-06-30 | T99: 2009-09-30 | U99: 2009-12-31 | V99: 2010-03-31 | W99: 2010-06-30 | X99: 2010-09-30 | Y99: 2010-12-31 | Z99: 2011-03-31 | AA99: 2011-06-30 | AB99: 2011-09-30 | AC99: 2011-12-30 | AD99: 2012-03-30 | AE99: 2012-06-29 | AF99: 2012-09-28 | AG99: 2012-12-31 | AH99: 2013-03-28 | AI99: 2013-06-28 | AJ99: 2013-09-30 | AK99: 2013-12-31 | AL99: 2014-03-31 | AM99: 2014-06-30 | AN99: 2014-09-30 | AO99: 2014-12-31 | AP99: 2015-03-31 | AQ99: 2015-06-30 | AR99: 2015-09-30 | AS99: 2015-12-31 | AT99: =+AT67 -> 2016-03-31 | AU99: 2016-06-30 | AV99: 2016-09-30 | AW99: 2016-12-30 | AX99: 2017-03-31 | AY99: 2017-06-30 | AZ99: =+AZ67 -> 2017-09-29 | BA99: 2017-12-29
A100: Weighted Average LTV | B100: 0.7796 | C100: 0.7804 | D100: 0.7796 | E100: 0.7797 | F100: 0.7794 | G100: 0.7779 | H100: 0.7768 | I100: 0.779 | J100: 0.7778 | K100: 0.7754 | L100: 0.7879 | M100: 0.7878 | N100: 0.7886 | O100: 0.7866 | P100: 0.7871 | Q100: 0.7867 | R100: 0.7861 | S100: 0.7834 | T100: 0.7826 | U100: 0.7755 | V100: 0.7755 | W100: 0.7751 | X100: 0.7757 | Y100: 0.7769 | Z100: 0.7763 | AA100: 0.7758 | AB100: 0.7752 | AC100: 0.7742 | AD100: 0.7739 | AE100: 0.7738 | AF100: 0.7736 | AG100: 0.7726 | AH100: 0.7712 | AI100: 0.7714 | AJ100: 0.7725 | AK100: 0.7722 | AL100: 0.7713 | AM100: 0.7723 | AN100: 0.7711141054 | AO100: 0.7713396941 | AP100: 0.7727892055 | AQ100: 0.7720018374 | AR100: 0.768166235 | AS100: 0.7664272618 | AT100: 0.7652201754 | AU100: 0.7665917388 | AV100: 0.7672965498 | AW100: 0.7660722248 | AX100: 0.7662191773 | AY100: 0.7649770824 | AZ100: 0.7660161128 | BA100: 0
A101: Weighted Average Nationwide Indexed LTV | B101: 0.7787 | C101: 0.7609 | D101: 0.7576 | E101: 0.7577 | F101: 0.7595 | G101: 0.7316 | H101: 0.7142 | I101: 0.7054 | J101: 0.6895 | K101: 0.671 | L101: 0.66 | M101: 0.653 | N101: 0.6553 | O101: 0.6686 | P101: 0.6965 | Q101: 0.7551 | R101: 0.7747 | S101: 0.8156 | T101: 0.7898 | U101: 0.7515 | V101: 0.7337 | W101: 0.7296 | X101: 0.7083 | Y101: 0.7305 | Z101: 0.7301 | AA101: 0.7095 | AB101: 0.7099 | AC101: 0.7135 | AD101: 0.7259 | AE101: 0.7273 | AF101: 0.7183 | AG101: 0.7131 | AH101: 0.7174 | AI101: 0.7144 | AJ101: 0.681 | AK101: 0.6841 | AL101: 0.6617 | AM101: 0.6478 | AN101: 0.607497806 | AO101: 0.6067639564 | AP101: 0.6077909021 | AQ101: 0.605537934 | AR101: 0.5879861108 | AS101: 0.582294759 | AT101: 0.5758240294 | AU101: 0.5738629026 | AV101: 0.5561851803 | AW101: 0.550517886 | AX101: 0.5488142517 | AY101: 0.5483228206 | AZ101: 0.5384017466 | BA101: 0
A102: Weighted Average Halifax Indexed LTV | B102: 0.7757 | C102: 0.7734 | D102: 0.7727 | E102: 0.7623 | F102: 0.743 | G102: 0.7258 | H102: 0.7086 | I102: 0.7043 | J102: 0.6761 | K102: 0.6549 | L102: 0.6435 | M102: 0.6381 | N102: 0.6587 | O102: 0.67 | P102: 0.695 | Q102: 0.7478 | R102: 0.7951 | S102: 0.8281 | T102: 0.8226 | U102: 0.7902 | V102: 0.7723 | W102: 0.7589 | X102: 0.7518 | Y102: 0.7658 | Z102: 0.7749 | AA102: 0.7821 | AB102: 0.7744 | AC102: 0.7691 | AD102: 0.7662 | AE102: 0.7734 | AF102: 0.7697 | AG102: 0.764 | AH102: 0.7698 | AI102: 0.7508 | AJ102: 0.7336 | AK102: 0.7227 | AL102: 0.7079 | AM102: 0.6887 | AN102: 0.6635888929 | AO102: 0.6353293225 | AP102: 0.6438363976 | AQ102: 0.6263444571 | AR102: 0.5964304925 | AS102: 0.5845609417 | AT102: 0.5843726246 | AU102: 0.5604035141 | AV102: N/A | AW102: N/A | AX102: N/A | AY102: N/A | AZ102: N/A | BA102: N/A
A103: % of Variable Rate Mortgages | B103: 0 | C103: 0 | D103: 0 | E103: 0 | F103: 0 | G103: 0 | H103: 0 | I103: 0 | J103: 0 | K103: 0 | L103: 0 | M103: 0 | N103: 0 | O103: 0 | P103: 0 | Q103: 0 | R103: 0 | S103: 0 | T103: 0 | U103: 0 | V103: 0 | W103: 0 | X103: 0 | Y103: 0 | Z103: 0 | AA103: 0 | AB103: 0 | AC103: 0 | AD103: 0 | AE103: 0 | AF103: 0 | AG103: 0 | AH103: 0 | AI103: 0 | AJ103: 0 | AK103: 0 | AL103: 0 | AM103: 0 | AN103: 0 | AO103: 0 | AP103: 0 | AQ103: 0 | AR103: 0 | AS103: 0 | AT103: 0 | AU103: 0 | AV103: 0 | AW103: 0 | AX103: 0 | AY103: 0 | AZ103: 0 | BA103: 0
A104: % of Fixed Rate Mortgages | B104: 0.7666 | C104: 0.7637 | D104: 0.7578 | E104: 0.7463 | F104: 0.561 | G104: 0.5572 | H104: 0.5174 | I104: 0.538 | J104: 0.5195 | K104: 0.5529 | L104: 0.3955 | M104: 0.5293 | N104: 0.5433 | O104: 0.5118 | P104: 0.4829 | Q104: 0.2806 | R104: 0.2333 | S104: 0.2248 | T104: 0.2106 | U104: 0.2141 | V104: 0.1274 | W104: 0.029 | X104: 0.0294 | Y104: 0.0208 | Z104: 0.0141 | AA104: 0.01 | AB104: 0.0056 | AC104: 0.0056 | AD104: 0.0056 | AE104: 0.001 | AF104: 0.001 | AG104: 0.001 | AH104: 0.001 | AI104: 0 | AJ104: 0 | AK104: 0 | AL104: 0 | AM104: 0 | AN104: 0 | AO104: 0 | AP104: 0 | AQ104: 0 | AR104: 0 | AS104: 0 | AT104: 0 | AU104: 0 | AV104: 0 | AW104: 0 | AX104: 0 | AY104: 0 | AZ104: 0 | BA104: 0
A105: % of Base Rate Mortgages | B105: 0 | C105: 0 | D105: 0 | E105: 0 | F105: 0 | G105: 0 | H105: 0 | I105: 0.0074 | J105: 0.0132 | K105: 0.0212 | L105: 0.0335 | M105: 0.0338 | N105: 0.0341 | O105: 0.0367 | P105: 0.0373 | Q105: 0.0343 | R105: 0.0377 | S105: 0.0381 | T105: 0.0385 | U105: 0.0408 | V105: 0.0409 | W105: 0.0387 | X105: 0.0393 | Y105: 0.0398 | Z105: 0.0399 | AA105: 0.0385 | AB105: 0.0389 | AC105: 0.0389 | AD105: 0.0393 | AE105: 0.0392 | AF105: 0.0395 | AG105: 0.0399 | AH105: 0.0406 | AI105: 0.0407 | AJ105: 0.041 | AK105: 0.0412 | AL105: 0.0416 | AM105: 0.0337 | AN105: 0.03286673354 | AO105: 0.03318753817 | AP105: 0.02590097229 | AQ105: 0.0263033941 | AR105: 0.02688353029 | AS105: 0.02736807363 | AT105: 0.02544354303 | AU105: 0.02622826882 | AV105: 0.02660037787 | AW105: 0.02708039216 | AX105: 0.02749216618 | AY105: 0.02773202294 | AZ105: 0.02828931003 | BA105: 0
A106: % of Libor Linked Mortgages | B106: 0.2334 | C106: 0.2363 | D106: 0.2422 | E106: 0.2537 | F106: 0.439 | G106: 0.4428 | H106: 0.4826 | I106: 0.4546 | J106: 0.4673 | K106: 0.4259 | L106: 0.571 | M106: 0.4369 | N106: 0.4226 | O106: 0.4515 | P106: 0.4798 | Q106: 0.6851 | R106: 0.729 | S106: 0.737 | T106: 0.7509 | U106: 0.7451 | V106: 0.8317 | W106: 0.9324 | X106: 0.9313 | Y106: 0.9394 | Z106: 0.946 | AA106: 0.9515 | AB106: 0.9555 | AC106: 0.9555 | AD106: 0.9551 | AE106: 0.9597 | AF106: 0.9595 | AG106: 0.9591 | AH106: 0.9584 | AI106: 0.9593 | AJ106: 0.959 | AK106: 0.9588 | AL106: 0.9584 | AM106: 0.9663 | AN106: 0.9671332665 | AO106: 0.9668124618 | AP106: 0.9740990277 | AQ106: 0.9736966059 | AR106: 0.9731164697 | AS106: 0.9726319264 | AT106: 0.974556457 | AU106: 0.9737717312 | AV106: 0.9733996221 | AW106: 0.9729196078 | AX106: 0.9725078338 | AY106: 0.9722679771 | AZ106: 0.97171069 | BA106: 0
A107: Weighted Average Loan Size | B107: 126660.35 | C107: 125391.14 | D107: 127199 | E107: 128628.46 | F107: 128888.32 | G107: 130615.95 | H107: 130990.27 | I107: 131143 | J107: 131744.08 | K107: 134133.5 | L107: 128316.77 | M107: 131646.09 | N107: 133114.83 | O107: 132767.99 | P107: 133696.66 | Q107: 133218.78 | R107: 132517.12 | S107: 131377.02 | T107: 131991.23 | U107: 131879.37 | V107: 131999.37 | W107: 131949.51 | X107: 131549.62 | Y107: 131041.14 | Z107: 131350.14 | AA107: 131404.25 | AB107: 131053.04 | AC107: 130773.33 | AD107: 130260.22 | AE107: 130330.14 | AF107: 129798.48 | AG107: 129331.99 | AH107: 129171.3 | AI107: 129172 | AJ107: 129595.87 | AK107: 130393.77 | AL107: 129740.53 | AM107: 130003.68 | AN107: 129817.4666 | AO107: 129850.1491 | AP107: 129127.2154 | AQ107: 129139.2505 | AR107: 128361.3682 | AS107: 127369.6081 | AT107: 127421.9315 | AU107: 127513.1725 | AV107: 128211.5774 | AW107: 128502.6788 | AX107: 127663.2457 | AY107: 127258.1622 | AZ107: 127032.5692 | BA107: 0
A108: Weighted Average Interest Rate | B108: 0.05288 | C108: 0.05266 | D108: 0.05486 | E108: 0.05528 | F108: 0.05449 | G108: 0.05535 | H108: 0.05785 | I108: 0.05879 | J108: 0.06065 | K108: 0.06131 | L108: 0.0707 | M108: 0.06651 | N108: 0.06267 | O108: 0.06407 | P108: 0.06412 | Q108: 0.05508 | R108: 0.04131 | S108: 0.03551 | T108: 0.03103 | U108: 0.03066 | V108: 0.02841 | W108: 0.02593 | X108: 0.02606 | Y108: 0.02593 | Z108: 0.02638 | AA108: 0.02649 | AB108: 0.02698 | AC108: 0.02842 | AD108: 0.02857 | AE108: 0.02792 | AF108: 0.02495 | AG108: 0.0234 | AH108: 0.02324 | AI108: 0.02319 | AJ108: 0.02331 | AK108: 0.0234 | AL108: 0.02338 | AM108: 0.02349 | AN108: 0.02395905839 | AO108: 0.02388793317 | AP108: 0.02402126458 | AQ108: 0.02408268802 | AR108: 0.02428837283 | AS108: 0.02416002206 | AT108: 0.02433476377 | AU108: 0.02423730541 | AV108: 0.02219902209 | AW108: 0.02225006695 | AX108: 0.02190504501 | AY108: 0.02133679071 | AZ108: 0.02122646763 | BA108: 0
A109: Weighted Average Maturity Date (years) | B109: 21.57 | C109: 21.36 | D109: 21.09 | E109: 20.88 | F109: 20.47 | G109: 20.2 | H109: 19.91 | I109: 19.68 | J109: 19.49 | K109: 19.14 | L109: 19.62 | M109: 19.46 | N109: 19.23 | O109: 18.91 | P109: 18.64 | Q109: 18.35 | R109: 18.09 | S109: 17.87 | T109: 17.62 | U109: 17.38 | V109: 17.12 | W109: 16.85 | X109: 16.65 | Y109: 16.4 | Z109: 16.14 | AA109: 15.9 | AB109: 15.66 | AC109: 15.41 | AD109: 15.17 | AE109: 14.91 | AF109: 14.7 | AG109: 14.46 | AH109: 14.22 | AI109: 13.97 | AJ109: 13.77 | AK109: 13.52 | AL109: 13.26 | AM109: 13.06 | AN109: 12.82477191 | AO109: 12.64339393 | AP109: 12.44158109 | AQ109: 12.19771464 | AR109: 11.95736858 | AS109: 11.68189053 | AT109: 11.46987175 | AU109: 11.29025318 | AV109: 11.01334721 | AW109: 10.78184631 | AX109: 10.51595769 | AY109: 10.28352527 | AZ109: 10.0793268 | BA109: 0
A110: Weighted Average Seasoning (months) | B110: 8.78 | C110: 11.71 | D110: 15.28 | E110: 17.82 | F110: 20.71 | G110: 23.69 | H110: 26.72 | I110: 29.74 | J110: 32.76 | K110: 35.74 | L110: 38.78 | M110: 41.78 | N110: 44.78 | O110: 47.76 | P110: 50.8 | Q110: 53.83 | R110: 56.74 | S110: 59.74 | T110: 62.76 | U110: 65.8 | V110: 68.75 | W110: 71.74 | X110: 74.78 | Y110: 77.77 | Z110: 80.73 | AA110: 83.72 | AB110: 86.75 | AC110: 89.77 | AD110: 92.76 | AE110: 95.75 | AF110: 98.78 | AG110: 101.81 | AH110: 104.77 | AI110: 107.76 | AJ110: 110.79 | AK110: 113.81 | AL110: 116.77 | AM110: 119.75 | AN110: 122.7701558 | AO110: 125.7787989 | AP110: 128.7381506 | AQ110: 131.7228864 | AR110: 134.7562572 | AS110: 137.77948 | AT110: 140.7745128 | AU110: 143.7742221 | AV110: 146.6965187 | AW110: 149.7217461 | AX110: 152.6829071 | AY110: 155.6718568 | AZ110: 158.7046592 | BA110: 0
A111: % of Interest Only Mortgages | B111: 0.9354 | C111: 0.935 | D111: 0.9368 | E111: 0.9382 | F111: 0.9392 | G111: 0.9425 | H111: 0.9419 | I111: 0.9419 | J111: 0.9512 | K111: 0.9494 | L111: 0.9446 | M111: 0.9476 | N111: 0.9526 | O111: 0.9557 | P111: 0.9534 | Q111: 0.9554 | R111: 0.9546 | S111: 0.9529 | T111: 0.9532 | U111: 0.956 | V111: 0.9565 | W111: 0.9579 | X111: 0.9586 | Y111: 0.9579 | Z111: 0.9594 | AA111: 0.9598 | AB111: 0.9601 | AC111: 0.9606 | AD111: 0.961 | AE111: 0.9556 | AF111: 0.9561 | AG111: 0.9565 | AH111: 0.9572 | AI111: 0.9577 | AJ111: 0.9575 | AK111: 0.9563 | AL111: 0.9552 | AM111: 0.956 | AN111: 0.9566823406 | AO111: 0.9550044974 | AP111: 0.9549724351 | AQ111: 0.9566477761 | AR111: 0.9585893197 | AS111: 0.9586361834 | AT111: 0.9589212193 | AU111: 0.9602505665 | AV111: 0.9605475013 | AW111: 0.9610561954 | AX111: 0.9644824701 | AY111: 0.9649943051 | AZ111: 0.9710201233 | BA111: 0
A112: % of Repayment Mortgages | B112: 0.0646 | C112: 0.065 | D112: 0.0632 | E112: 0.0618 | F112: 0.0608 | G112: 0.0575 | H112: 0.0581 | I112: 0.0581 | J112: 0.0488 | K112: 0.0506 | L112: 0.0554 | M112: 0.0524 | N112: 0.0474 | O112: 0.0443 | P112: 0.0466 | Q112: 0.0446 | R112: 0.0454 | S112: 0.0471 | T112: 0.0468 | U112: 0.044 | V112: 0.0435 | W112: 0.0421 | X112: 0.0414 | Y112: 0.0421 | Z112: 0.0406 | AA112: 0.0402 | AB112: 0.0399 | AC112: 0.0394 | AD112: 0.039 | AE112: 0.0444 | AF112: 0.0439 | AG112: 0.0435 | AH112: 0.0428 | AI112: 0.0423 | AJ112: 0.0425 | AK112: 0.0437 | AL112: 0.0448 | AM112: 0.044 | AN112: 0.04331765937 | AO112: 0.04499550256 | AP112: 0.04502756492 | AQ112: 0.04335222393 | AR112: 0.04141068027 | AS112: 0.04136381661 | AT112: 0.04107878074 | AU112: 0.03974943346 | AV112: 0.03945249873 | AW112: 0.03894380458 | AX112: 0.0355175299 | AY112: 0.03500569494 | AZ112: 0.02897987673 | BA112: 0
A113: % of Mortgages in London | B113: 0.3513 | C113: 0.3431 | D113: 0.3453 | E113: 0.3529 | F113: 0.3487 | G113: 0.3566 | H113: 0.356 | I113: 0.3673 | J113: 0.3775 | K113: 0.385 | L113: 0.3363 | M113: 0.3507 | N113: 0.3532 | O113: 0.3409 | P113: 0.3398 | Q113: 0.3385 | R113: 0.3292 | S113: 0.3273 | T113: 0.3294 | U113: 0.3262 | V113: 0.3273 | W113: 0.3304 | X113: 0.3296 | Y113: 0.3266 | Z113: 0.3273 | AA113: 0.3284 | AB113: 0.3315 | AC113: 0.3312 | AD113: 0.3263 | AE113: 0.3259 | AF113: 0.3242 | AG113: 0.3181 | AH113: 0.3109 | AI113: 0.3115 | AJ113: 0.3063 | AK113: 0.3081 | AL113: 0.3055 | AM113: 0.302 | AN113: 0.3007064379 | AO113: 0.2979612912 | AP113: 0.292634739 | AQ113: 0.297120882 | AR113: 0.2933964815 | AS113: 0.287069527 | AT113: 0.2907373178 | AU113: 0.292626501 | AV113: 0.2968240846 | AW113: 0.2968379212 | AX113: 0.2936989445 | AY113: 0.2908374385 | AZ113: 0.2939291774 | BA113: 0
A114: % of Mortgages in the South East | B114: 0.3007 | C114: 0.3043 | D114: 0.3055 | E114: 0.3026 | F114: 0.3067 | G114: 0.306 | H114: 0.3095 | I114: 0.298 | J114: 0.2913 | K114: 0.2876 | L114: 0.3114 | M114: 0.3039 | N114: 0.3015 | O114: 0.3063 | P114: 0.3022 | Q114: 0.2959 | R114: 0.3013 | S114: 0.305 | T114: 0.3057 | U114: 0.3066 | V114: 0.3056 | W114: 0.3009 | X114: 0.3057 | Y114: 0.3093 | Z114: 0.309 | AA114: 0.3099 | AB114: 0.3098 | AC114: 0.3099 | AD114: 0.3123 | AE114: 0.3118 | AF114: 0.3134 | AG114: 0.3164 | AH114: 0.3182 | AI114: 0.3171 | AJ114: 0.3207 | AK114: 0.321 | AL114: 0.3206 | AM114: 0.3253 | AN114: 0.3249628123 | AO114: 0.3276027979 | AP114: 0.3320106112 | AQ114: 0.3313193342 | AR114: 0.3306287597 | AS114: 0.3313968128 | AT114: 0.3265191371 | AU114: 0.3210630431 | AV114: 0.3190690903 | AW114: 0.3169163158 | AX114: 0.3145524498 | AY114: 0.3164413311 | AZ114: 0.3086995678 | BA114: 0
A115: % of Owner Occupied Mortgages | B115: 0 | C115: 0 | D115: 0 | E115: 0 | F115: 0 | G115: 0 | H115: 0 | I115: 0 | J115: 0 | K115: 0 | L115: 0 | M115: 0 | N115: 0 | O115: 0 | P115: 0 | Q115: 0 | R115: 0 | S115: 0 | T115: 0 | U115: 0 | V115: 0 | W115: 0 | X115: 0 | Y115: 0 | Z115: 0 | AA115: 0 | AB115: 0 | AC115: 0 | AD115: 0 | AE115: 0 | AF115: 0 | AG115: 0 | AH115: 0 | AI115: 0 | AJ115: 0 | AK115: 0 | AL115: 0 | AM115: 0 | AN115: 0 | AO115: 0 | AP115: 0 | AQ115: 0 | AR115: 0 | AS115: 0 | AT115: 0 | AU115: 0 | AV115: 0 | AW115: 0 | AX115: 0 | AY115: 0 | AZ115: 0 | BA115: 0
A116: % of Investment Home Loans - Professional Landlords | B116: 0.5967 | C116: 0.5908 | D116: 0.5981 | E116: 0.6081 | F116: 0.6143 | G116: 0.6122 | H116: 0.6117 | I116: 0.6096 | J116: 0.6002 | K116: 0.6057 | L116: 0.5967 | M116: 0.5787 | N116: 0.5858 | O116: 0.605 | P116: 0.6053 | Q116: 0.6161 | R116: 0.6197 | S116: 0.6154 | T116: 0.6169 | U116: 0.6117 | V116: 0.6107 | W116: 0.6117 | X116: 0.6129 | Y116: 0.6155 | Z116: 0.6151 | AA116: 0.6173 | AB116: 0.6227 | AC116: 0.6226 | AD116: 0.6246 | AE116: 0.6251 | AF116: 0.6285 | AG116: 0.6251 | AH116: 0.6214 | AI116: 0.6217 | AJ116: 0.624 | AK116: 0.6247 | AL116: 0.6248 | AM116: 0.627 | AN116: 0.6267849972 | AO116: 0.6241122744 | AP116: 0.6237811726 | AQ116: 0.6237319085 | AR116: 0.622998538 | AS116: 0.6211775567 | AT116: 0.6212578992 | AU116: 0.6238298917 | AV116: 0.6269900634 | AW116: 0.6267201769 | AX116: 0.6315368476 | AY116: 0.629275663 | AZ116: 0.6311987968 | BA116: 0
A117: % of Investment Home Loans - Emerging Professional Landlords | B117: 0.4033 | C117: 0.4092 | D117: 0.4019 | E117: 0.3919 | F117: 0.3857 | G117: 0.3878 | H117: 0.3883 | I117: 0.3904 | J117: 0.3998 | K117: 0.3943 | L117: 0.4033 | M117: 0.4213 | N117: 0.4142 | O117: 0.395 | P117: 0.3947 | Q117: 0.3839 | R117: 0.3803 | S117: 0.3846 | T117: 0.3831 | U117: 0.3883 | V117: 0.3893 | W117: 0.3883 | X117: 0.3871 | Y117: 0.3845 | Z117: 0.3849 | AA117: 0.3827 | AB117: 0.3773 | AC117: 0.3774 | AD117: 0.3754 | AE117: 0.3749 | AF117: 0.3715 | AG117: 0.3749 | AH117: 0.3786 | AI117: 0.3783 | AJ117: 0.376 | AK117: 0.3753 | AL117: 0.3752 | AM117: 0.373 | AN117: 0.3732150028 | AO117: 0.3758877256 | AP117: 0.3762188274 | AQ117: 0.3762680915 | AR117: 0.377001462 | AS117: 0.3788224433 | AT117: 0.3787421008 | AU117: 0.3761701083 | AV117: 0.3730099366 | AW117: 0.3732798231 | AX117: 0.3684631524 | AY117: 0.370724337 | AZ117: 0.3688012032 | BA117: 0
A118: Weighted Average Interest Coverage Ratio (calculated at the origination date) | B118: 1.45 | C118: 1.45 | D118: 1.62 | E118: 1.63 | F118: 1.71 | G118: 1.71 | H118: 1.72 | I118: 1.74 | J118: 1.76 | K118: 1.78 | L118: 1.89 | M118: 1.96 | N118: 1.99 | O118: 2.02 | P118: 2.05 | Q118: 2.07 | R118: 2.09 | S118: 2.1 | T118: 2.1 | U118: 2.12 | V118: 2.12 | W118: 2.13 | X118: 2.14 | Y118: 2.15 | Z118: 2.15 | AA118: 2.15 | AB118: 2.15 | AC118: 2.15 | AD118: 2.16 | AE118: 2.16 | AF118: 2.16 | AG118: 2.17 | AH118: 2.19 | AI118: 2.19 | AJ118: 2.19 | AK118: 2.2 | AL118: 2.21 | AM118: 2.23 | AN118: 2.235887418 | AO118: 2.239735461 | AP118: 2.258505244 | AQ118: 2.26921239 | AR118: 2.284447124 | AS118: 2.302499806 | AT118: 2.263384756 | AU118: 2.280486483 | AV118: 2.288726482 | AW118: 2.30808165 | AX118: 2.314352659 | AY118: 2.326328192 | AZ118: 2.340934105 | BA118: 0
A119: MTL Lifetime Redemption Rate | B119: 0.0322 | C119: 0.0442 | D119: 0.0716 | E119: 0.0961 | F119: 0.1056 | G119: 0.1069 | H119: 0.1247 | I119: 0.1364 | J119: 0.145 | K119: 0.1523 | L119: 0.2096 | M119: 0.2301 | N119: 0.227 | O119: 0.2297 | P119: 0.2294 | Q119: 0.2281 | R119: 0.2217 | S119: 0.2135 | T119: 0.205 | U119: 0.1986 | V119: 0.191 | W119: 0.1848 | X119: 0.1802 | Y119: 0.1754 | Z119: 0.1698 | AA119: 0.1646 | AB119: 0.1605 | AC119: 0.1556 | AD119: 0.1518 | AE119: 0.1474 | AF119: 0.1438 | AG119: 0.1409 | AH119: 0.139 | AI119: 0.1355 | AJ119: 0.1329 | AK119: 0.1302 | AL119: 0.1279 | AM119: 0.1261 | AN119: 0.1239 | AO119: 0.122 | AP119: 0.1211 | AQ119: 0.1197 | AR119: 0.119 | AS119: 0.118 | AT119: 0.1166 | AU119: 0.1166 | AV119: 0.1155 | AW119: 0.1147 | AX119: 0.1136 | AY119: 0.1122 | AZ119: 0.1116 | BA119: 1
A120: Aggregate Potential Redraw Amount | B120: 1319573.97 | C120: 1197224.97 | D120: 1073994.86 | E120: 1121974.78 | F120: 1184356.84 | G120: 1011741.27 | H120: 915738.91 | I120: 991223.31 | J120: 886861.41 | K120: 687770.92 | L120: 501384.82 | M120: 483158.54 | N120: 240541.58 | O120: 223409.82 | P120: 204818.35 | Q120: 198136.98 | R120: 201994.33 | S120: 184727.03 | T120: 202139.66 | U120: 216175.2 | V120: 257924.78 | W120: 286767.71 | X120: 263721.72 | Y120: 298456.36 | Z120: 154943.3 | AA120: 178595.42 | AB120: 194208.47 | AC120: 209585.13 | AD120: 228970.58 | AE120: 233759.13 | AF120: 201561.23 | AG120: 227407.07 | AH120: 200762.3 | AI120: 167069.11 | AJ120: 65 | AK120: 0 | AL120: 0 | AM120: 0 | AN120: 0 | AO120: 0 | AP120: 0 | AQ120: 0 | AR120: 0 | AS120: 0 | AT120: 0 | AU120: 0 | AV120: 0 | AW120: 0 | AX120: 0 | AY120: 0 | AZ120: 0 | BA120: 0
A121: Number of Properties in Possession | B121: 0 | C121: 0 | D121: 0 | E121: 0 | F121: 0 | G121: 0 | H121: 0 | I121: 0 | J121: 0 | K121: 0 | L121: 0 | M121: 0 | N121: 0 | O121: 0 | P121: 0 | Q121: 0 | R121: 0 | S121: 0 | T121: 0 | U121: 0 | V121: 0 | W121: 0 | X121: 0 | Y121: 0 | Z121: 0 | AA121: 0 | AB121: 0 | AC121: 0 | AD121: 0 | AE121: 0 | AF121: 0 | AG121: 0 | AH121: 0 | AI121: 0 | AJ121: 0 | AK121: 0 | AL121: 0 | AM121: 0 | AN121: 1 | AO121: 0 | AP121: 0 | AQ121: 0 | AR121: 0 | AS121: 0 | AT121: 0 | AU121: 0 | AV121: 0 | AW121: 0 | AX121: 0 | AY121: 0 | AZ121: 0 | BA121: 0
A122: Appointment of a Receiver of Rent | B122: 0 | C122: 1 | D122: 3 | E122: 0 | F122: 2 | G122: 8 | H122: 7 | I122: 8 | J122: 8 | K122: 7 | L122: 6 | M122: 7 | N122: 8 | O122: 6 | P122: 9 | Q122: 17 | R122: 13 | S122: 18 | T122: 17 | U122: 14 | V122: 13 | W122: 12 | X122: 11 | Y122: 11 | Z122: 10 | AA122: 10 | AB122: 14 | AC122: 14 | AD122: 13 | AE122: 13 | AF122: 13 | AG122: 12 | AH122: 8 | AI122: 8 | AJ122: 8 | AK122: 7 | AL122: 6 | AM122: 6 | AN122: 6 | AO122: 6 | AP122: 6 | AQ122: 5 | AR122: 5 | AS122: 5 | AT122: 6 | AU122: 5 | AV122: 5 | AW122: 4 | AX122: 4 | AY122: 4 | AZ122: 3 | BA122: 0
A123: MTL Quarterly Losses | B123: 0 | C123: 0 | D123: 0 | E123: 0 | F123: 0 | G123: 0 | H123: 0 | I123: 19 | J123: 0 | K123: 27 | L123: 4 | M123: 0 | N123: 0 | O123: -2 | P123: 0 | Q123: 58 | R123: 129 | S123: 1 | T123: 2 | U123: 211 | V123: 0 | W123: 43 | X123: 31 | Y123: 0 | Z123: 0 | AA123: 0 | AB123: -1 | AC123: 1 | AD123: 0 | AE123: 0 | AF123: -1 | AG123: 118 | AH123: 64 | AI123: 1 | AJ123: -39 | AK123: -28 | AL123: -11 | AM123: -2 | AN123: -1 | AO123: 19 | AP123: -2 | AQ123: 0 | AR123: -1 | AS123: -1 | AT123: -1 | AU123: -2 | AV123: -1 | AW123: -1 | AX123: -1 | AY123: -1 | AZ123: 13 | BA123: 80
A124: Arrears excluding Receiver of Rent and Possession Cases
A125: Performing Loans | B125: 0.9783 | C125: 0.984 | D125: 0.9862249549 | E125: 0.9816 | F125: 0.9921 | G125: 0.9865 | H125: 0.9879 | I125: 0.9954 | J125: 0.9828 | K125: 0.987 | L125: 0.9747 | M125: 0.991 | N125: 0.9802 | O125: 0.9642 | P125: 0.9655 | Q125: 0.9432 | R125: 0.9666 | S125: 0.9617 | T125: 0.963 | U125: 0.9779 | V125: 0.991 | W125: 0.9927 | X125: 0.9859 | Y125: 0.9878 | Z125: 0.997 | AA125: 0.9962 | AB125: 0.9962 | AC125: 0.9988 | AD125: 0.9959 | AE125: 0.9948 | AF125: 0.9972 | AG125: 0.9972 | AH125: 0.9906 | AI125: 0.9971 | AJ125: 0.9971 | AK125: 0.9971 | AL125: 0.9931 | AM125: 0.996 | AN125: 1 | AO125: 1 | AP125: 1 | AQ125: 1 | AR125: 1 | AS125: 0.9967560978 | AT125: 0.9967020679 | AU125: 0.9966052674 | AV125: 0.9938237005 | AW125: 0.9972308305 | AX125: 1 | AY125: 0.9974915631 | AZ125: 0.9987310222 | BA125: 0
A126: >1 to 2 months arrears | B126: 0.0128 | C126: 0.0118 | D126: 0.01244952809 | E126: 0.0034 | F126: 0.0032 | G126: 0.0024 | H126: 0.0121 | I126: 0.0003 | J126: 0.015 | K126: 0.0097 | L126: 0.0194 | M126: 0.0073 | N126: 0.012 | O126: 0.0331 | P126: 0.0303 | Q126: 0.0181 | R126: 0 | S126: 0.0151 | T126: 0.0104 | U126: 0 | V126: 0.0018 | W126: 0 | X126: 0.0066 | Y126: 0.0122 | Z126: 0.003 | AA126: 0.0038 | AB126: 0.0038 | AC126: 0.0012 | AD126: 0.0041 | AE126: 0.0052 | AF126: 0.0028 | AG126: 0 | AH126: 0.0094 | AI126: 0 | AJ126: 0 | AK126: 0.0029 | AL126: 0.0069 | AM126: 0.004 | AN126: 0 | AO126: 0 | AP126: 0 | AQ126: 0 | AR126: 0 | AS126: 0.003243902173 | AT126: 0.00329793207 | AU126: 0.003394732555 | AV126: 0.006176299529 | AW126: 0 | AX126: 0 | AY126: 0.002508436945 | AZ126: 0 | BA126: 0
A127: >2 to 3 months arrears | B127: 0.0025 | C127: 0 | D127: 0.001325517027 | E127: 0.0143 | F127: 0.0047 | G127: 0.0096 | H127: 0 | I127: 0.0043 | J127: 0 | K127: 0.0024 | L127: 0.0059 | M127: 0.0017 | N127: 0.0044 | O127: 0.0021 | P127: 0.0022 | Q127: 0.0313 | R127: 0.0075 | S127: 0.003 | T127: 0.0119 | U127: 0.0148 | V127: 0.0072 | W127: 0 | X127: 0 | Y127: 0 | Z127: 0 | AA127: 0 | AB127: 0 | AC127: 0 | AD127: 0 | AE127: 0 | AF127: 0 | AG127: 0.0028 | AH127: 0 | AI127: 0.0029 | AJ127: 0.0029 | AK127: 0 | AL127: 0 | AM127: 0 | AN127: 0 | AO127: 0 | AP127: 0 | AQ127: 0 | AR127: 0 | AS127: 0 | AT127: 0 | AU127: 0 | AV127: 0 | AW127: 0.002769169529 | AX127: 0 | AY127: 0 | AZ127: 0.001268977788 | BA127: 0
A128: >3 months arrears | B128: 0.0064 | C128: 0.0042 | D128: 0 | E128: 0.0007 | F128: 0 | G128: 0.0015 | H128: 0 | I128: 0 | J128: 0.0022 | K128: 0.0009 | L128: 0 | M128: 0 | N128: 0.0034 | O128: 0.0006 | P128: 0.002 | Q128: 0.0074 | R128: 0.0259 | S128: 0.0202 | T128: 0.0147 | U128: 0.0073 | V128: 0 | W128: 0.0073 | X128: 0.0075 | Y128: 0 | Z128: 0 | AA128: 0 | AB128: 0 | AC128: 0 | AD128: 0 | AE128: 0 | AF128: 0 | AG128: 0 | AH128: 0 | AI128: 0 | AJ128: 0 | AK128: 0 | AL128: 0 | AM128: 0 | AN128: 0 | AO128: 0 | AP128: 0 | AQ128: 0 | AR128: 0 | AS128: 0 | AT128: 0 | AU128: 0 | AV128: 0 | AW128: 0 | AX128: 0 | AY128: 0 | AZ128: 0 | BA128: 0
A129: Total | B129: =SUM(B125:B128) -> 1 | C129: 1 | D129: 1 | E129: 1 | F129: 1 | G129: 1 | H129: 1 | I129: 1 | J129: 1 | K129: 1 | L129: 1 | M129: 1 | N129: 1 | O129: 1 | P129: 1 | Q129: 1 | R129: 1 | S129: 1 | T129: 1 | U129: 1 | V129: 1 | W129: 1 | X129: 1 | Y129: 1 | Z129: 1 | AA129: 1 | AB129: 1 | AC129: =SUM(AC125:AC128) -> 1 | AD129: 1 | AE129: 1 | AF129: 1 | AG129: 1 | AH129: 1 | AI129: =SUM(AI125:AI128) -> 1 | AJ129: 1 | AK129: 1 | AL129: 1 | AM129: 1 | AN129: 1 | AO129: 1 | AP129: 1 | AQ129: 1 | AR129: 1 | AS129: 1 | AT129: 1 | AU129: 1 | AV129: 1 | AW129: 1 | AX129: 1 | AY129: 1 | AZ129: 1 | BA129: =SUM(BA125:BA128) -> 0

Sheet Graphs
P2: PARAGON MORTGAGES (NO.8) PLC
